{"text_format":"1","workbook":"xlsx","n_sheets":6,"sheets":["ご利用時にあたって","外国送金取引規定","入力シート","送金依頼書（印刷）","入力見本","変更履歴"],"not_rendered":{"charts":0,"images":14,"macros":1,"external_links":0,"defined_names":18,"comments":1,"pivot_tables":0},"unopened":[],"bounds":{"document_bytes":16777216,"sheet_cells":100000,"rows_first":2000,"rows_last":500,"rows_between":2000,"halvings":0,"cell_chars":16384,"cell_head_chars":4096},"cells_cut":0,"cells_raw":0,"read":"whole","date_system":"1900"}

{"sheet":"ご利用時にあたって","index":0,"n_rows":0,"n_cols":0,"rows_kept":0,"cut":false,"hidden":false,"merged":[]}

{"sheet":"外国送金取引規定","index":1,"n_rows":0,"n_cols":0,"rows_kept":0,"cut":false,"hidden":false,"merged":[]}

{"sheet":"入力シート","index":2,"n_rows":252,"n_cols":58,"rows_kept":252,"cut":false,"hidden":false,"merged":[[68,3,68,8],[68,9,68,23],[69,3,70,8],[69,9,70,23],[63,12,64,12],[63,10,64,11],[63,13,64,15],[63,3,64,8],[65,3,67,8],[65,9,67,23],[63,9,64,9],[58,3,58,5],[58,6,58,11],[58,12,58,19],[59,3,59,5],[59,6,59,11],[59,12,59,15],[59,16,59,24],[11,3,11,10],[22,3,22,10],[40,3,41,8],[21,3,21,10],[21,11,21,16],[32,3,32,10],[35,3,36,22],[39,3,39,8],[39,9,39,16],[20,17,20,24],[30,3,30,10],[14,11,14,24],[15,11,15,24],[32,11,32,16],[33,3,34,10],[33,11,34,24],[4,11,4,17],[4,3,4,10],[5,3,5,10],[8,3,8,10],[8,11,8,24],[4,18,4,21],[5,11,5,21],[48,3,51,22],[56,15,56,17],[56,8,56,14],[56,18,56,24],[56,3,56,7],[55,3,55,5],[55,6,55,11],[55,12,55,15],[55,16,55,24],[54,12,54,19],[54,6,54,11],[54,3,54,5],[9,3,10,10],[9,11,10,24],[31,3,31,10],[31,11,31,16],[29,3,29,10],[29,11,29,24],[11,11,11,24],[19,17,19,24],[14,3,15,4],[14,5,14,10],[15,5,15,10],[22,15,22,24],[16,3,16,10],[16,11,16,24],[17,3,18,10],[17,11,18,24],[30,17,30,24],[22,11,22,14],[19,3,19,10],[19,11,19,16],[20,3,20,10],[20,11,20,16],[30,11,30,16],[26,3,26,10],[26,11,26,24],[1,4,1,22],[76,1,79,24],[40,9,41,24],[42,17,42,24],[44,16,44,24],[45,16,45,24],[46,9,47,24],[42,9,42,16],[43,9,43,16],[45,3,45,15],[42,3,42,8],[43,3,43,8],[44,3,44,15],[46,3,46,8],[47,3,47,8],[31,17,31,24]]}
[]
[null,null,null,"◆","白枠内を入力してください。全て英字・半角大文字で入力してください。"]
[]
[null,1,null,"送金通貨と送金額をご入力ください。（CURRENCY and AMOUNT)",null,null,null,null,null,null,null,null,null,null,null,null,null,null,null,null,null,null,null,null,null,null,null,null,null,null,null,null,null,null,null,null,null,null,null,null,null,null,null,null,null,null,null,null,null,"国名",null,"通貨",null,"店番","支店名","科目","科目２","送金目的"]
[null,null,null,"通貨 (CURRENCY)",null,null,null,null,null,null,null,null,null,null,null,null,null,null,{"$f":"IFERROR(VLOOKUP(L5,$AZ$5:$BA$24,2,FALSE),\"\")","v":""},null,null,null,null,null,null,{"$f":"COUNTA(L5)","v":0},null,null,null,null,null,null,null,null,null,null,null,null,null,null,null,null,null,null,null,null,null,null,null,"日本","JAPAN","日本円","JPY",101,"本店営業部","普通","普通","輸入"]
[null,null,null,"金額 (REMIT AMOUNT)",null,null,null,null,null,null,null,null,null,null,null,null,null,null,null,null,null,null,null,null,null,{"$f":"COUNT(L6)","v":0},null,null,null,null,null,null,null,null,null,null,null,null,null,null,null,null,null,null,null,null,null,null,null,"アメリカ合衆国","UNITED STATES","アメリカドル","USD",102,"府庁出張所","当座","当座","仲介貿易"]
[null,null,null,null,null,null,null,null,null,null,null,null,null,null,null,null,null,null,null,null,null,null,null,null,null,{"$f":"SUM(Z5:Z6)","v":0},null,null,null,null,null,null,null,null,null,null,null,null,null,null,null,null,null,null,null,null,null,null,null,"大韓民国","KOREA, REPUBLIC OF","ユーロ","EUR",111,"四条支店","外貨普通",null,"その他（資本・貿易外）"]
[null,2,null,"ご送金人（ご依頼人）情報をご入力ください。（FROM:)",null,null,null,null,null,null,null,null,null,null,null,null,null,null,null,null,null,null,null,null,null,null,null,null,null,null,null,null,null,null,null,null,null,null,null,null,null,null,null,null,null,null,null,null,null,"中華人民共和国","CHINA","スターリング・ポンド","GBP",112,"七条支店"]
[null,null,null,"名前 （NAME)",null,null,null,null,null,null,null,null,null,null,null,null,null,null,null,null,null,null,null,null,null,{"$f":"COUNTA(L9)","v":0},null,null,null,null,null,null,null,null,null,null,null,null,null,null,null,null,null,null,null,null,null,null,null,"台湾","TAIWAN","カナダ・ドル","CAD",113,"京都駅前支店"]
[null,null,null,"住所 （ADDRESS)",null,null,null,null,null,null,null,null,null,null,null,null,null,null,null,null,null,null,null,null,null,{"$f":"COUNTA(L10)","v":0},null,null,null,null,null,null,null,null,null,null,null,null,null,null,null,null,null,null,null,null,null,null,null,"香港","HONG KONG","オーストラリア・ドル","AUD",114,"河原町支店"]
[null,null,null,null,null,null,null,null,null,null,null,null,null,null,null,null,null,null,null,null,null,null,null,null,null,null,null,null,null,null,null,null,null,null,null,null,null,null,null,null,null,null,null,null,null,null,null,null,null,"シンガポール","SINGAPORE","スイス・フラン","CHF",115,"大宮支店"]
[null,null,null,"支払方法\n(PAYMENT INSTRUCTION)",null,null,null,null,null,null,null,"通知払(ADVICE AND PAY)〔ご指定口座入金〕",null,null,null,null,null,null,null,null,null,null,null,null,null,{"$f":"COUNTA(L12)","v":1},null,null,null,null,null,null,null,null,null,null,null,null,null,null,null,null,null,null,null,null,null,null,null,"オーストラリア","AUSTRALIA","ニュージーランド・ドル","NZD",121,"三条支店"]
[null,null,null,null,null,null,null,null,null,null,null,null,null,null,null,null,null,null,null,null,null,null,null,null,null,{"$f":"SUM(Z9:Z12)","v":1},null,null,null,null,null,null,null,null,null,null,null,null,null,null,null,null,null,null,null,null,null,null,null,"英国","UNITED KINGDOM","デンマーク・クローネ","DKK",122,"府庁前支店"]
[null,3,null,"お受取人取引（送金先）銀行をご入力ください。(PAYING BANK AND BRANCH)",null,null,null,null,null,null,null,null,null,null,null,null,null,null,null,null,null,null,null,null,null,null,null,null,null,null,null,null,null,null,null,null,null,null,null,null,null,null,null,null,null,null,null,null,null,"ドイツ","GERMANY","スウェーデン・クローナ","SEK",123,"西院支店"]
[null,null,null,"銀行コード",null,"SWIFT(BIC)コード",null,null,null,null,null,null,null,null,null,null,null,null,null,null,null,null,null,null,null,{"$f":"COUNTA(L15)","v":0},null,null,null,null,null,null,null,null,null,null,null,null,null,null,null,null,null,null,null,null,null,null,null,"フランス","FRANCE","香港ドル","HKD",127,"京都市役所前支店"]
[null,null,null,null,null,"その他コード\n(ABA,BSB,TRANSIT等)",null,null,null,null,null,null,null,null,null,null,null,null,null,null,null,null,null,null,null,null,null,null,null,null,null,null,null,null,null,null,null,null,null,null,null,null,null,null,null,null,null,null,null,"-----ここからカナ名順------",null,"シンガポール・ドル","SGD",128,"円町支店"]
[null,null,null,"銀行名 (PAYING BANK) ",null,null,null,null,null,null,null,null,null,null,null,null,null,null,null,null,null,null,null,null,null,{"$f":"COUNTA(L17)","v":0},null,null,null,null,null,null,null,null,null,null,null,null,null,null,null,null,null,null,null,null,null,null,null,"アイスランド","ICELAND","タイ・バーツ","THB",124,"西五条企業会館支店"]
[null,null,null,"支店名 (BRANCH）・\n支店住所 (ADDRESS）",null,null,null,null,null,null,null,null,null,null,null,null,null,null,null,null,null,null,null,null,null,{"$f":"COUNTA(L18)","v":0},null,null,null,null,null,null,null,null,null,null,null,null,null,null,null,null,null,null,null,null,null,null,null,"アイルランド","IRELAND","中国元（法人・個人事業主のみ）","CNY",125,"西七条支店"]
[null,null,null,null,null,null,null,null,null,null,null,null,null,null,null,null,null,null,null,null,null,null,null,null,null,null,null,null,null,null,null,null,null,null,null,null,null,null,null,null,null,null,null,null,null,null,null,null,null,"アゼルバイジャン","AZERBAIJAN","台湾ドル（法人・個人事業主のみ）","TWD",126,"西四条支店"]
[null,null,null,"国名 (COUNTRY）",null,null,null,null,null,null,null,null,null,null,null,null,null,{"$f":"IFERROR(VLOOKUP(L20,$AX$5:$AY$252,2,FALSE),\"\")","v":""},null,null,null,null,null,null,null,{"$f":"COUNTA(L20)","v":0},null,null,null,null,null,null,null,null,null,null,null,null,null,null,null,null,null,null,null,null,null,null,null,"アゾレス","AZORES","インドネシアルピア（法人・個人事業主のみ）","IDR",130,"聖護院支店"]
[null,null,null,"省市/州名 (STATE）",null,null,null,null,null,null,null,null,null,null,null,null,null,{"$f":"IF(OR(L20=\"アメリカ合衆国\",L20=\"中華人民共和国\"),\"←入力必須\",\"\")","v":""},null,null,null,null,null,null,null,null,null,null,null,null,null,null,null,null,null,null,null,null,null,null,null,null,null,null,null,null,null,null,null,"アフガニスタン","AFGHANISTAN","韓国ウォン（法人・個人事業主のみ）","KRW",129,"二条駅前支店"]
[null,null,null,"都市名 (CITY）",null,null,null,null,null,null,null,null,null,null,null,null,null,null,null,null,null,null,null,null,null,{"$f":"COUNTA(L22)","v":0},null,null,null,null,null,null,null,null,null,null,null,null,null,null,null,null,null,null,null,null,null,null,null,"アメリカ合衆国","UNITED STATES"]
[null,null,null,"口座番号（A/C NO.)",null,null,null,null,null,null,null,"(欧州向けの\n場合はIBANコード)",null,null,null,null,null,null,null,null,null,null,null,null,null,{"$f":"COUNTA(P23)","v":0},null,null,null,null,null,null,null,null,null,null,null,null,null,null,null,null,null,null,null,null,null,null,null,"アラブ首長国連邦","UNITED ARAB EMIRATES",null,null,131,"西陣支店"]
[null,null,null,null,null,null,null,null,null,null,null,null,null,null,null,null,null,null,null,null,null,null,null,null,null,{"$f":"SUM(Z15:Z23)","v":0},null,null,null,null,null,null,null,null,null,null,null,null,null,null,null,null,null,null,null,null,null,null,null,"アルジェリア","ALGERIA",null,null,141,"銀閣寺支店"]
[null,4,null,"お受取人取引銀行等手数料（支払銀行手数料）のお支払い方法を選んでください。",null,null,null,null,null,null,null,null,null,null,null,null,null,null,null,null,null,null,null,null,null,null,null,null,null,null,null,null,null,null,null,null,null,null,null,null,null,null,null,null,null,null,null,null,null,"アルゼンチン","ARGENTINA",null,null,151,"帷子ノ辻支店"]
[null,null,null,"(PAYING BANK'S CHARGES IF ANY, ARE FOR A/C OF)",null,null,null,null,null,null,null,null,null,null,null,null,null,null,null,null,null,null,null,null,null,null,null,null,null,null,null,null,null,null,null,null,null,null,null,null,null,null,null,null,null,null,null,null,null,"アルバニア","ALBANIA",null,null,152,"嵯峨支店"]
[null,null,null,"手数料支払い方法",null,null,null,null,null,null,null,null,null,null,null,null,null,null,null,null,null,null,null,null,null,{"$f":"COUNTA(L27)","v":0},null,null,null,null,null,null,null,null,null,null,null,null,null,null,null,null,null,null,null,null,null,null,null,"アルメニア","ARMENIA",null,null,153,"桂支店"]
[null,null,null,null,null,null,null,null,null,null,null,null,null,null,null,null,null,null,null,null,null,null,null,null,null,{"$f":"SUM(Z27)","v":0},null,null,null,null,null,null,null,null,null,null,null,null,null,null,null,null,null,null,null,null,null,null,null,"アンギラ","ANGUILLA",null,null,154,"上桂支店"]
[null,5,null,"お受取人（送金先）をご入力ください。（TO:）",null,null,null,null,null,null,null,null,null,null,null,null,null,null,null,null,null,null,null,null,null,null,null,null,null,null,null,null,null,null,null,null,null,null,null,null,null,null,null,null,null,null,null,null,null,"アンゴラ","ANGOLA",null,null,142,"下鴨支店"]
[null,null,null,"名前 （NAME)",null,null,null,null,null,null,null,null,null,null,null,null,null,null,null,null,null,null,null,null,null,{"$f":"COUNTA(L30)","v":0},null,null,null,null,null,null,null,null,null,null,null,null,null,null,null,null,null,null,null,null,null,null,null,"アンティグア・バーブーダ","ANTIGUA AND BARBUDA",null,null,143,"高野支店"]
[null,null,null,"国名(COUNTRY)",null,null,null,null,null,null,null,null,null,null,null,null,null,{"$f":"IFERROR(VLOOKUP(L31,$AX$5:$AY$257,2,FALSE),\"\")","v":""},null,null,null,null,null,null,null,{"$f":"COUNTA(L31)","v":0},null,null,null,null,null,null,null,null,null,null,null,null,null,null,null,null,null,null,null,null,null,null,null,"アンドラ","ANDORRA",null,null,147,"三宅八幡支店"]
[null,null,null,"省市/州名 (STATE）",null,null,null,null,null,null,null,null,null,null,null,null,null,{"$f":"IF(OR(L31=\"アメリカ合衆国\",L31=\"中華人民共和国\"),\"←入力必須\",\"\")","v":""},null,null,null,null,null,null,null,null,null,null,null,null,null,null,null,null,null,null,null,null,null,null,null,null,null,null,null,null,null,null,null,"イエメン","YEMEN",null,null,146,"百万遍支店"]
[null,null,null,"都市名 (CITY）",null,null,null,null,null,null,null,null,null,null,null,null,null,null,null,null,null,null,null,null,null,{"$f":"COUNTA(L33)","v":0},null,null,null,null,null,null,null,null,null,null,null,null,null,null,null,null,null,null,null,null,null,null,null,"イスラエル","ISRAEL"]
[null,null,null,"住所 （ADDRESS)",null,null,null,null,null,null,null,null,null,null,null,null,null,null,null,null,null,null,null,null,null,{"$f":"COUNTA(L34)","v":0},null,null,null,null,null,null,null,null,null,null,null,null,null,null,null,null,null,null,null,null,null,null,null,"イタリア","ITALY",null,null,144,"出町支店"]
[null,null,null,null,null,null,null,null,null,null,null,null,null,null,null,null,null,null,null,null,null,null,null,null,null,null,null,null,null,null,null,null,null,null,null,null,null,null,null,null,null,null,null,null,null,null,null,null,null,"イラク","IRAQ",null,null,145,"修学院支店"]
[null,null,null,"受取人(法人の場合は実質的支配者を含む)は資産凍結等経済制裁対象者に\n該当しません。(NONE RELATED TO ECONOMIC SANCTIONS)",null,null,null,null,null,null,null,null,null,null,null,null,null,null,null,null,null,null,null,null,null,false,null,null,null,null,null,null,null,null,null,null,null,null,null,null,null,null,null,null,null,null,null,null,null,"イラン","IRAN",null,null,173,"吉祥院支店"]
[null,null,null,null,null,null,null,null,null,null,null,null,null,null,null,null,null,null,null,null,null,null,null,null,null,null,null,null,null,null,null,null,null,null,null,null,null,null,null,null,null,null,null,null,null,null,null,null,null,"インド","INDIA",null,null,174,"東九条支店"]
[null,null,null,null,null,null,null,null,null,null,null,null,null,null,null,null,null,null,null,null,null,null,null,null,null,{"$f":"SUM(Z30:Z35)","v":0},null,null,null,null,null,null,null,null,null,null,null,null,null,null,null,null,null,null,null,null,null,null,null,"インドネシア","INDONESIA",null,null,150,"常盤支店"]
[null,6,null,"ご送金目的をご入力ください。(PURPOSE)",null,null,null,null,null,null,null,null,null,null,null,null,null,null,null,null,null,null,null,null,null,null,null,null,null,null,null,null,null,null,null,null,null,null,null,null,null,null,null,null,null,null,null,null,null,"ウガンダ","UGANDA",null,null,155,"太秦安井支店"]
[null,null,null,"送金目的",null,null,null,null,null,null,null,null,null,null,null,null,null,null,null,null,null,null,null,null,null,{"$f":"COUNTA(J40)","v":0},null,null,null,null,null,null,null,null,null,null,null,null,null,null,null,null,null,null,null,null,null,null,null,"ウクライナ","UKRAINE",null,null,156,"西京極支店"]
[null,null,null,"送金理由(PURPOSE)",null,null,null,null,null,null,null,null,null,null,null,null,null,null,null,null,null,null,null,null,null,{"$f":"COUNTA(J41)","v":0},null,null,null,null,null,null,null,null,null,null,null,null,null,null,null,null,null,null,null,null,null,null,null,"ウズベキスタン","UZBEKISTAN",null,null,157,"洛西支店"]
[null,null,null,null,null,null,null,null,null,null,null,null,null,null,null,null,null,null,null,null,null,null,null,null,null,null,null,null,null,null,null,null,null,null,null,null,null,null,null,null,null,null,null,null,null,null,null,null,null,"ウルグアイ","URUGUAY",null,null,158,"松尾支店"]
[null,null,null,"原産地（国名）\n(COUNTRY OF ORIGIN)",null,null,null,null,null,null,null,null,null,null,null,null,null,{"$f":"IFERROR(VLOOKUP(J43,$AX$5:$AY$257,2,FALSE),\"\")","v":""},null,null,null,null,null,null,null,{"$f":"COUNTA(J43)","v":0},null,null,null,null,null,null,null,null,null,null,null,null,null,null,null,null,null,null,null,null,null,null,null,"英国","UNITED KINGDOM",null,null,159,"西桂支店"]
[null,null,null,"船積を行った都市名\n(SHIPMENT CITY NAME)",null,null,null,null,null,null,null,null,null,null,null,null,null,null,null,null,null,null,null,null,null,{"$f":"COUNTA(J44)","v":0},null,null,null,null,null,null,null,null,null,null,null,null,null,null,null,null,null,null,null,null,null,null,null,"エクアドル","ECUADOR",null,null,161,"白梅町支店"]
[null,null,null,"外国為替及び外国貿易法に基づく許可等",null,null,null,null,null,null,null,null,null,null,null,null,null,null,null,null,null,null,null,null,null,{"$f":"COUNTA(Q45)","v":0},null,null,null,null,null,null,null,null,null,null,null,null,null,null,null,null,null,null,null,null,null,null,null,"エジプト","EGYPT",null,null,162,"紫野支店"]
[null,null,null,"送金許可番号・日付⑤(PERMIT NO. & DATE)",null,null,null,null,null,null,null,null,null,null,null,null,null,null,null,null,null,null,null,null,null,null,{"$f":"IF(Q45=\"要\",\"必須\",\"\")","v":""},null,null,null,null,null,null,null,null,null,null,null,null,null,null,null,null,null,null,null,null,null,null,"エストニア","ESTONIA",null,null,163,"鞍馬口支店"]
[null,null,null,"メッセージ",null,null,null,null,null,null,null,null,null,null,null,null,null,null,null,null,null,null,null,null,null,{"$f":"COUNTA(J47)","v":0},null,null,null,null,null,null,null,null,null,null,null,null,null,null,null,null,null,null,null,null,null,null,null,"エチオピア","ETHIOPIA",null,null,164,"上堀川支店"]
[null,null,null,{"$f":"IF(OR(L20=\"インドネシア\",L20=\"アラブ首長国連邦\",L20=\"バーレーン\",L20=\"ミャンマー\"),\"※送金目的コード等必須!!\",\"\")","v":""},null,null,null,null,null,null,null,null,null,null,null,null,null,null,null,null,null,null,null,null,null,null,null,null,null,null,null,null,null,null,null,null,null,null,null,null,null,null,null,null,null,null,null,null,null,"エリトリア","ERITREA",null,null,165,"金閣寺支店"]
[null,null,null,"「外国為替及び外国貿易法」の北朝鮮・イラン・ウクライナ情勢\n（ロシア・ベラルーシ）関連規制及び米国OFAC規制に該当しません。\n(NONE RELATED TO NORTH KOREA/IRAN/RUSSIA/BELARUS/\nOFAC REGULATIONS)",null,null,null,null,null,null,null,null,null,null,null,null,null,null,null,null,null,null,null,null,null,false,null,null,null,null,null,null,null,null,null,null,null,null,null,null,null,null,null,null,null,null,null,null,null,"エルサルバドル","EL SALVADOR",null,null,166,"紫竹支店"]
[null,null,null,null,null,null,null,null,null,null,null,null,null,null,null,null,null,null,null,null,null,null,null,null,null,null,null,null,null,null,null,null,null,null,null,null,null,null,null,null,null,null,null,null,null,null,null,null,null,"オーストラリア","AUSTRALIA"]
[null,null,null,null,null,null,null,null,null,null,null,null,null,null,null,null,null,null,null,null,null,null,null,null,null,null,null,null,null,null,null,null,null,null,null,null,null,null,null,null,null,null,null,null,null,null,null,null,null,"その他のオーストラリア領","COCOS ISLANDS",null,null,171,"九条支店"]
[null,null,null,null,null,null,null,null,null,null,null,null,null,null,null,null,null,null,null,null,null,null,null,null,null,null,null,null,null,null,null,null,null,null,null,null,null,null,null,null,null,null,null,null,null,null,null,null,null,"オーストリア","AUSTRIA"]
[null,null,null,null,null,null,null,null,null,null,null,null,null,null,null,null,null,null,null,null,null,null,null,null,null,{"$f":"SUM(Z40:Z45)","v":0},null,null,null,null,null,null,null,null,null,null,null,null,null,null,null,null,null,null,null,null,null,null,null,"オマーン","OMAN",null,null,175,"久世支店"]
[null,7,null,"（１）送金資金のお支払い口座をご入力ください。(APPLICANTS' ACCOUNT INFORMATION)",null,null,null,null,null,null,null,null,null,null,null,null,null,null,null,null,null,null,null,null,null,null,null,null,null,null,null,null,null,null,null,null,null,null,null,null,null,null,null,null,null,null,null,null,null,"オランダ","NETHERLANDS",null,null,181,"東山支店"]
[null,null,null,"店番",null,null,null,null,null,null,null,null,{"$f":"IFERROR(VLOOKUP($G$55,$BB$5:$BC$186,2,FALSE),\"\")","v":""},null,null,null,null,null,null,null,null,null,null,null,null,{"$f":"COUNTA(G55)","v":0},null,null,null,null,null,null,null,null,null,null,null,null,null,null,null,null,null,null,null,null,null,null,null,"ガーナ","GHANA",null,null,182,"山科支店"]
[null,null,null,"科目",null,null,null,null,null,null,null,null,"口座番号",null,null,null,null,null,null,null,null,null,null,null,null,{"$f":"COUNTA(G56)","v":0},null,null,null,null,null,null,null,null,null,null,null,null,null,null,null,null,null,null,null,null,null,null,null,"カーボヴェルデ","CAPE VERDE",null,null,183,"山科中央支店"]
[null,null,null,"代り金決済方法",null,null,null,null,null,null,null,null,null,null,null,"予約番号",null,null,null,null,null,null,null,null,null,{"$f":"COUNTA(Q56)","v":0},null,null,null,null,null,null,null,null,null,null,null,null,null,null,null,null,null,null,null,null,null,null,null,"ガーンジィ","GUERNSEY",null,null,184,"西山科支店"]
[null,null,null,"（２）送金手数料のお支払口座をご入力ください。",null,null,null,null,null,null,null,null,null,null,null,null,null,null,null,null,null,null,null,null,null,{"$f":"COUNTA(I57)","v":0},null,null,null,null,null,null,null,null,null,null,null,null,null,null,null,null,null,null,null,null,null,null,null,"ガイアナ","GUYANA",null,null,185,"山科小野支店"]
[null,null,null,"店番",null,null,null,null,null,null,null,null,{"$f":"IFERROR(VLOOKUP($G$59,$BB$5:$BC$186,2,FALSE),\"\")","v":""},null,null,null,null,null,null,null,null,null,null,null,null,{"$f":"COUNT(G59)","v":0},null,null,null,null,null,null,null,null,null,null,null,null,null,null,null,null,null,null,null,null,null,null,null,"カザフスタン","KAZAKHSTAN",null,null,190,"下鳥羽支店"]
[null,null,null,"科目",null,null,null,null,null,null,null,null,"口座番号",null,null,null,null,null,null,null,null,null,null,null,null,{"$f":"COUNTA(G60)","v":0},null,null,null,null,null,null,null,null,null,null,null,null,null,null,null,null,null,null,null,null,null,null,null,"カタール","QATAR",null,null,191,"稲荷支店"]
[null,null,null,null,null,null,null,null,null,null,null,null,null,null,null,null,null,null,null,null,null,null,null,null,null,{"$f":"COUNTA(Q60)","v":0},null,null,null,null,null,null,null,null,null,null,null,null,null,null,null,null,null,null,null,null,null,null,null,"カナダ","CANADA",null,null,192,"伏見支店"]
[null,8,null,"ご依頼人のお名前・ご住所・連絡先をご入力ください。",null,null,null,null,null,null,null,null,null,null,null,null,null,null,null,null,null,null,null,null,null,{"$f":"SUM(Z55:Z61)","v":0},null,null,null,null,null,null,null,null,null,null,null,null,null,null,null,null,null,null,null,null,null,null,null,"カナリー諸島","CANARY ISLANDS",null,null,193,"淀支店"]
[null,null,null,"(APPLICANT'S NAME, ADDRESS, CONTACT NUMBER)",null,null,null,null,null,null,null,null,null,null,null,null,null,null,null,null,null,null,null,null,null,null,null,null,null,null,null,null,null,null,null,null,null,null,null,null,null,null,null,null,null,null,null,null,null,"ガボン","GABON",null,null,194,"墨染支店"]
[null,null,null,"郵便番号",null,null,null,null,null,"〒",null,null,"－",null,null,null,null,null,null,null,null,null,null,null,null,{"$f":"COUNTA(K64)","v":0},null,null,null,null,null,null,null,null,null,null,null,null,null,null,null,null,null,null,null,null,null,null,null,"カメルーン","CAMEROON",null,null,196,"小栗栖出張所"]
[null,null,null,null,null,null,null,null,null,null,null,null,null,null,null,null,null,null,null,null,null,null,null,null,null,{"$f":"COUNTA(N64)","v":0},null,null,null,null,null,null,null,null,null,null,null,null,null,null,null,null,null,null,null,null,null,null,null,"ガンビア","GAMBIA",null,null,197,"向島支店"]
[null,null,null,"おところ\n※日本語",null,null,null,null,null,null,null,null,null,null,null,null,null,null,null,null,null,null,null,null,null,{"$f":"COUNTA(J66)","v":0},null,null,null,null,null,null,null,null,null,null,null,null,null,null,null,null,null,null,null,null,null,null,null,"カンボジア","CAMBODIA",null,null,198,"藤森支店"]
[null,null,null,null,null,null,null,null,null,null,null,null,null,null,null,null,null,null,null,null,null,null,null,null,null,null,null,null,null,null,null,null,null,null,null,null,null,null,null,null,null,null,null,null,null,null,null,null,null,"北朝鮮","KOREA, NORTH",null,null,290,"桂川支店"]
[null,null,null,null,null,null,null,null,null,null,null,null,null,null,null,null,null,null,null,null,null,null,null,null,null,null,null,null,null,null,null,null,null,null,null,null,null,null,null,null,null,null,null,null,null,null,null,null,null,"北マリアナ諸島","NORTHERN MARIANA ISLANDS",null,null,291,"長岡京駅前支店"]
[null,null,null,"日中連絡可能な電話番号",null,null,null,null,null,null,null,null,null,null,null,null,null,null,null,null,null,null,null,null,null,{"$f":"COUNTA(J69)","v":0},null,null,null,null,null,null,null,null,null,null,null,null,null,null,null,null,null,null,null,null,null,null,null,"ギニア","GUINEA",null,null,292,"長岡今里支店"]
[null,null,null,"ご依頼人",null,null,null,null,null,null,null,null,null,null,null,null,null,null,null,null,null,null,null,null,null,null,null,null,null,null,null,null,null,null,null,null,null,null,null,null,null,null,null,null,null,null,null,null,null,"ギニアビサウ","REPUBLIC OF GUINEA BISSAU",null,null,293,"松井山手支店"]
[null,null,null,null,null,null,null,null,null,null,null,null,null,null,null,null,null,null,null,null,null,null,null,null,null,null,null,null,null,null,null,null,null,null,null,null,null,null,null,null,null,null,null,null,null,null,null,null,null,"キプロス","CYPRUS",null,null,295,"八幡中央支店"]
[null,null,null,null,null,null,null,null,null,null,null,null,null,null,null,null,null,null,null,null,null,null,null,null,null,{"$f":"SUM(Z64:Z69)","v":0},null,null,null,null,null,null,null,null,null,null,null,null,null,null,null,null,null,null,null,null,null,null,null,"キューバ","CUBA",null,null,296,"三山木支店"]
[null,null,null,1,2,3,4,5,6,7,8,null,null,null,null,null,null,null,null,null,null,null,null,null,null,null,null,null,null,null,null,null,null,null,null,null,null,null,null,null,null,null,null,null,null,null,null,null,null,"ギリシャ","GREECE",null,null,297,"宇治田原支店"]
[null,null,null,{"$f":"IF(Z7=2,\"○\",\"×\")","v":"×"},{"$f":"IF(Z13=3,\"○\",\"×\")","v":"×"},{"$f":"IF(Z24=6,\"○\",\"×\")","v":"×"},{"$f":"IF(Z28=1,\"○\",\"×\")","v":"×"},{"$f":"IF(AND(Z38=4,Z36=TRUE),\"○\",\"×\")","v":"×"},{"$f":"IF(AND(I75=\"○\",Z49=TRUE,J75=\"○\"),\"○\",\"×\")","v":"×"},{"$f":"IF(Z62=7,\"○\",\"×\")","v":"×"},{"$f":"IF(Z72=4,\"○\",\"×\")","v":"×"},null,null,null,null,null,null,null,null,null,null,null,null,null,null,null,null,null,null,null,null,null,null,null,null,null,null,null,null,null,null,null,null,null,null,null,null,null,null,"キリバス","KIRIBATI",null,null,298,"三室戸支店"]
[null,null,null,null,null,null,null,null,{"$f":"IF(AND(OR(J40=\"輸入\",J40=\"仲介貿易\"),Z53=5),\"○\",IF(AND(J40=\"その他（資本・貿易外）\",Z53=2),\"○\",\"\"))","v":""},{"$f":"IF(OR(AND(D48=\"※送金目的コード等必須!!\",Z47=1),AND(D48=\"\",Z47>=0)),\"○\",\"\")","v":"○"},null,null,null,null,null,null,null,null,null,null,null,null,null,null,null,null,null,null,null,null,null,null,null,null,null,null,null,null,null,null,null,null,null,null,null,null,null,null,null,"キルギス","KYRGYZ REPUBLIC",null,null,299,"東長岡支店"]
[null,null,null,null,null,null,null,null,null,null,null,null,null,null,null,null,null,null,null,null,null,null,null,null,null,null,null,null,null,null,null,null,null,null,null,null,null,null,null,null,null,null,null,null,null,null,null,null,null,"グアテマラ","GUATEMALA",null,null,300,"久津川支店"]
[null,"すべて入力できましたら、送金依頼書（印刷）シート（右隣）を印刷して、\nお取引店までご来店ください。\n※本シートを印刷されてご来店いただいても、受付できません。",null,null,null,null,null,null,null,null,null,null,null,null,null,null,null,null,null,null,null,null,null,null,null,null,null,null,null,null,null,null,null,null,null,null,null,null,null,null,null,null,null,null,null,null,null,null,null,"グアム","GUAM",null,null,302,"大住支店"]
[null,null,null,null,null,null,null,null,null,null,null,null,null,null,null,null,null,null,null,null,null,null,null,null,null,null,null,null,null,null,null,null,null,null,null,null,null,null,null,null,null,null,null,null,null,null,null,null,null,"クウェート","KUWAIT",null,null,303,"伊勢田支店"]
[null,null,null,null,null,null,null,null,null,null,null,null,null,null,null,null,null,null,null,null,null,null,null,null,null,null,null,null,null,null,null,null,null,null,null,null,null,null,null,null,null,null,null,null,null,null,null,null,null,"クック諸島","COOK ISLANDS",null,null,305,"精華町支店"]
[null,null,null,null,null,null,null,null,null,null,null,null,null,null,null,null,null,null,null,null,null,null,null,null,null,null,null,null,null,null,null,null,null,null,null,null,null,null,null,null,null,null,null,null,null,null,null,null,null,"グリーンランド","GREENLAND",null,null,306,"木幡支店"]
[null,null,null,null,null,null,null,null,null,null,null,null,null,null,null,null,null,null,null,null,null,null,null,null,null,null,null,null,null,null,null,null,null,null,null,null,null,null,null,null,null,null,null,null,null,null,null,null,null,"グルジア","GEORGIA",null,null,307,"男山支店"]
[null,null,null,null,null,null,null,null,null,null,null,null,null,null,null,null,null,null,null,null,null,null,null,null,null,null,null,null,null,null,null,null,null,null,null,null,null,null,null,null,null,null,null,null,null,null,null,null,null,"グレナダ","GRENADA",null,null,308,"富野荘支店"]
[null,null,null,null,null,null,null,null,null,null,null,null,null,null,null,null,null,null,null,null,null,null,null,null,null,null,null,null,null,null,null,null,null,null,null,null,null,null,null,null,null,null,null,null,null,null,null,null,null,"クロアチア","CROATIA",null,null,309,"六地蔵支店"]
[null,null,null,null,null,null,null,null,null,null,null,null,null,null,null,null,null,null,null,null,null,null,null,null,null,null,null,null,null,null,null,null,null,null,null,null,null,null,null,null,null,null,null,null,null,null,null,null,null,"ケイマン諸島","CAYMAN ISLANDS",null,null,310,"久御山町支店"]
[null,null,null,null,null,null,null,null,null,null,null,null,null,null,null,null,null,null,null,null,null,null,null,null,null,null,null,null,null,null,null,null,null,null,null,null,null,null,null,null,null,null,null,null,null,null,null,null,null,"ケニア","KENYA",null,null,311,"向日町支店"]
[null,null,null,null,null,null,null,null,null,null,null,null,null,null,null,null,null,null,null,null,null,null,null,null,null,null,null,null,null,null,null,null,null,null,null,null,null,null,null,null,null,null,null,null,null,null,null,null,null,"コートジボワール","REPUBLIC OF COTE DIVOIRE",null,null,312,"長岡支店"]
[null,null,null,null,null,null,null,null,null,null,null,null,null,null,null,null,null,null,null,null,null,null,null,null,null,null,null,null,null,null,null,null,null,null,null,null,null,null,null,null,null,null,null,null,null,null,null,null,null,"コスタリカ","COSTA RICA",null,null,313,"宇治支店"]
[null,null,null,null,null,null,null,null,null,null,null,null,null,null,null,null,null,null,null,null,null,null,null,null,null,null,null,null,null,null,null,null,null,null,null,null,null,null,null,null,null,null,null,null,null,null,null,null,null,"コモロ","COMOROS",null,null,314,"八幡支店"]
[null,null,null,null,null,null,null,null,null,null,null,null,null,null,null,null,null,null,null,null,null,null,null,null,null,null,null,null,null,null,null,null,null,null,null,null,null,null,null,null,null,null,null,null,null,null,null,null,null,"コロンビア","COLOMBIA",null,null,315,"大久保支店"]
[null,null,null,null,null,null,null,null,null,null,null,null,null,null,null,null,null,null,null,null,null,null,null,null,null,null,null,null,null,null,null,null,null,null,null,null,null,null,null,null,null,null,null,null,null,null,null,null,null,"コンゴ共和国","REPUBLIC OF CONGO",null,null,316,"木津支店"]
[null,null,null,null,null,null,null,null,null,null,null,null,null,null,null,null,null,null,null,null,null,null,null,null,null,null,null,null,null,null,null,null,null,null,null,null,null,null,null,null,null,null,null,null,null,null,null,null,null,"コンゴ民主共和国","D.R. OF THE CONGO",null,null,317,"東向日町支店"]
[null,null,null,null,null,null,null,null,null,null,null,null,null,null,null,null,null,null,null,null,null,null,null,null,null,null,null,null,null,null,null,null,null,null,null,null,null,null,null,null,null,null,null,null,null,null,null,null,null,"サウジアラビア","SAUDI ARABIA",null,null,318,"小倉支店"]
[null,null,null,null,null,null,null,null,null,null,null,null,null,null,null,null,null,null,null,null,null,null,null,null,null,null,null,null,null,null,null,null,null,null,null,null,null,null,null,null,null,null,null,null,null,null,null,null,null,"サモア","SAMOA",null,null,319,"田辺支店"]
[null,null,null,null,null,null,null,null,null,null,null,null,null,null,null,null,null,null,null,null,null,null,null,null,null,null,null,null,null,null,null,null,null,null,null,null,null,null,null,null,null,null,null,null,null,null,null,null,null,"サントメ・プリンシペ","D.R. SAO TOME AND PRINCIPE",null,null,320,"城陽支店"]
[null,null,null,null,null,null,null,null,null,null,null,null,null,null,null,null,null,null,null,null,null,null,null,null,null,null,null,null,null,null,null,null,null,null,null,null,null,null,null,null,null,null,null,null,null,null,null,null,null,"ザンビア","ZAMBIA",null,null,321,"亀岡支店"]
[null,null,null,null,null,null,null,null,null,null,null,null,null,null,null,null,null,null,null,null,null,null,null,null,null,null,null,null,null,null,null,null,null,null,null,null,null,null,null,null,null,null,null,null,null,null,null,null,null,"サンピエール及びミクロン島","SAINT PIERRE AND MIQUELON",null,null,322,"北桑支店"]
[null,null,null,null,null,null,null,null,null,null,null,null,null,null,null,null,null,null,null,null,null,null,null,null,null,null,null,null,null,null,null,null,null,null,null,null,null,null,null,null,null,null,null,null,null,null,null,null,null,"サンマリノ","SAN MARINO",null,null,323,"美山支店"]
[null,null,null,null,null,null,null,null,null,null,null,null,null,null,null,null,null,null,null,null,null,null,null,null,null,null,null,null,null,null,null,null,null,null,null,null,null,null,null,null,null,null,null,null,null,null,null,null,null,"シエラレオネ","SIERRA LEONE",null,null,324,"八木支店"]
[null,null,null,null,null,null,null,null,null,null,null,null,null,null,null,null,null,null,null,null,null,null,null,null,null,null,null,null,null,null,null,null,null,null,null,null,null,null,null,null,null,null,null,null,null,null,null,null,null,"ジブチ","REPUBLIC OF DJIBOUTI",null,null,325,"園部支店"]
[null,null,null,null,null,null,null,null,null,null,null,null,null,null,null,null,null,null,null,null,null,null,null,null,null,null,null,null,null,null,null,null,null,null,null,null,null,null,null,null,null,null,null,null,null,null,null,null,null,"ジブラルタル","GIBRALTAR",null,null,326,"須知支店"]
[null,null,null,null,null,null,null,null,null,null,null,null,null,null,null,null,null,null,null,null,null,null,null,null,null,null,null,null,null,null,null,null,null,null,null,null,null,null,null,null,null,null,null,null,null,null,null,null,null,"ジャージィー","JERSEY",null,null,327,"千代川支店"]
[null,null,null,null,null,null,null,null,null,null,null,null,null,null,null,null,null,null,null,null,null,null,null,null,null,null,null,null,null,null,null,null,null,null,null,null,null,null,null,null,null,null,null,null,null,null,null,null,null,"ジャマイカ","JAMAICA",null,null,328,"大井支店"]
[null,null,null,null,null,null,null,null,null,null,null,null,null,null,null,null,null,null,null,null,null,null,null,null,null,null,null,null,null,null,null,null,null,null,null,null,null,null,null,null,null,null,null,null,null,null,null,null,null,"シリア","SYRIA",null,null,329,"東亀岡支店"]
[null,null,null,null,null,null,null,null,null,null,null,null,null,null,null,null,null,null,null,null,null,null,null,null,null,null,null,null,null,null,null,null,null,null,null,null,null,null,null,null,null,null,null,null,null,null,null,null,null,"シンガポール","SINGAPORE",null,null,331,"福知山支店"]
[null,null,null,null,null,null,null,null,null,null,null,null,null,null,null,null,null,null,null,null,null,null,null,null,null,null,null,null,null,null,null,null,null,null,null,null,null,null,null,null,null,null,null,null,null,null,null,null,null,"ジンバブエ","ZIMBABWE",null,null,332,"寺田駅前"]
[null,null,null,null,null,null,null,null,null,null,null,null,null,null,null,null,null,null,null,null,null,null,null,null,null,null,null,null,null,null,null,null,null,null,null,null,null,null,null,null,null,null,null,null,null,null,null,null,null,"スイス","SWITZERLAND",null,null,333,"長田野出張所"]
[null,null,null,null,null,null,null,null,null,null,null,null,null,null,null,null,null,null,null,null,null,null,null,null,null,null,null,null,null,null,null,null,null,null,null,null,null,null,null,null,null,null,null,null,null,null,null,null,null,"スウェーデン","SWEDEN",null,null,334,"綾部支店"]
[null,null,null,null,null,null,null,null,null,null,null,null,null,null,null,null,null,null,null,null,null,null,null,null,null,null,null,null,null,null,null,null,null,null,null,null,null,null,null,null,null,null,null,null,null,null,null,null,null,"スーダン","SUDAN",null,null,335,"福知山駅南支店"]
[null,null,null,null,null,null,null,null,null,null,null,null,null,null,null,null,null,null,null,null,null,null,null,null,null,null,null,null,null,null,null,null,null,null,null,null,null,null,null,null,null,null,null,null,null,null,null,null,null,"スペイン","SPAIN",null,null,341,"東舞鶴支店"]
[null,null,null,null,null,null,null,null,null,null,null,null,null,null,null,null,null,null,null,null,null,null,null,null,null,null,null,null,null,null,null,null,null,null,null,null,null,null,null,null,null,null,null,null,null,null,null,null,null,"スリナム","SURINAME",null,null,342,"西舞鶴支店"]
[null,null,null,null,null,null,null,null,null,null,null,null,null,null,null,null,null,null,null,null,null,null,null,null,null,null,null,null,null,null,null,null,null,null,null,null,null,null,null,null,null,null,null,null,null,null,null,null,null,"スリランカ","REPUBLIC OF SRI LANKA",null,null,351,"宮津支店"]
[null,null,null,null,null,null,null,null,null,null,null,null,null,null,null,null,null,null,null,null,null,null,null,null,null,null,null,null,null,null,null,null,null,null,null,null,null,null,null,null,null,null,null,null,null,null,null,null,null,"スロバキア","SLOVAKIA",null,null,353,"岩滝支店"]
[null,null,null,null,null,null,null,null,null,null,null,null,null,null,null,null,null,null,null,null,null,null,null,null,null,null,null,null,null,null,null,null,null,null,null,null,null,null,null,null,null,null,null,null,null,null,null,null,null,"スロベニア","SLOVENIA",null,null,354,"加悦谷支店"]
[null,null,null,null,null,null,null,null,null,null,null,null,null,null,null,null,null,null,null,null,null,null,null,null,null,null,null,null,null,null,null,null,null,null,null,null,null,null,null,null,null,null,null,null,null,null,null,null,null,"スワジランド","SWAZILAND",null,null,361,"峰山支店"]
[null,null,null,null,null,null,null,null,null,null,null,null,null,null,null,null,null,null,null,null,null,null,null,null,null,null,null,null,null,null,null,null,null,null,null,null,null,null,null,null,null,null,null,null,null,null,null,null,null,"セウタ及びメリリヤ","CEUTA AND MELILLA",null,null,363,"網野支店"]
[null,null,null,null,null,null,null,null,null,null,null,null,null,null,null,null,null,null,null,null,null,null,null,null,null,null,null,null,null,null,null,null,null,null,null,null,null,null,null,null,null,null,null,null,null,null,null,null,null,"セーシェル","REPUBLIC OF SEYCHELLES",null,null,365,"久美浜支店"]
[null,null,null,null,null,null,null,null,null,null,null,null,null,null,null,null,null,null,null,null,null,null,null,null,null,null,null,null,null,null,null,null,null,null,null,null,null,null,null,null,null,null,null,null,null,null,null,null,null,"赤道ギニア","REPUBLIC OF EQUATORIAL GUINEA",null,null,500,"草津支店"]
[null,null,null,null,null,null,null,null,null,null,null,null,null,null,null,null,null,null,null,null,null,null,null,null,null,null,null,null,null,null,null,null,null,null,null,null,null,null,null,null,null,null,null,null,null,null,null,null,null,"セネガル","SENEGAL",null,null,501,"瀬田支店"]
[null,null,null,null,null,null,null,null,null,null,null,null,null,null,null,null,null,null,null,null,null,null,null,null,null,null,null,null,null,null,null,null,null,null,null,null,null,null,null,null,null,null,null,null,null,null,null,null,null,"セルビア","SERBIA",null,null,502,"栗東支店"]
[null,null,null,null,null,null,null,null,null,null,null,null,null,null,null,null,null,null,null,null,null,null,null,null,null,null,null,null,null,null,null,null,null,null,null,null,null,null,null,null,null,null,null,null,null,null,null,null,null,"セントクリストフ゘ー・ネアビス","SAINT CHRISTOPHER AND NEVIS",null,null,503,"西大津支店"]
[null,null,null,null,null,null,null,null,null,null,null,null,null,null,null,null,null,null,null,null,null,null,null,null,null,null,null,null,null,null,null,null,null,null,null,null,null,null,null,null,null,null,null,null,null,null,null,null,null,"セントビンセント","SAINT VINCENT",null,null,504,"彦根支店"]
[null,null,null,null,null,null,null,null,null,null,null,null,null,null,null,null,null,null,null,null,null,null,null,null,null,null,null,null,null,null,null,null,null,null,null,null,null,null,null,null,null,null,null,null,null,null,null,null,null,"セントヘレナ","SAINT HELENA",null,null,505,"堅田支店"]
[null,null,null,null,null,null,null,null,null,null,null,null,null,null,null,null,null,null,null,null,null,null,null,null,null,null,null,null,null,null,null,null,null,null,null,null,null,null,null,null,null,null,null,null,null,null,null,null,null,"セントルシア","SAINT LUCIA",null,null,506,"近江八幡支店"]
[null,null,null,null,null,null,null,null,null,null,null,null,null,null,null,null,null,null,null,null,null,null,null,null,null,null,null,null,null,null,null,null,null,null,null,null,null,null,null,null,null,null,null,null,null,null,null,null,null,"ソマリア","SOMALIA",null,null,507,"南草津支店"]
[null,null,null,null,null,null,null,null,null,null,null,null,null,null,null,null,null,null,null,null,null,null,null,null,null,null,null,null,null,null,null,null,null,null,null,null,null,null,null,null,null,null,null,null,null,null,null,null,null,"ソロモン","SOLOMON ISLANDS",null,null,508,"大津支店"]
[null,null,null,null,null,null,null,null,null,null,null,null,null,null,null,null,null,null,null,null,null,null,null,null,null,null,null,null,null,null,null,null,null,null,null,null,null,null,null,null,null,null,null,null,null,null,null,null,null,"タークス及びカアコス諸島","TURKS AND CAICOS ISLANDS",null,null,509,"石山支店"]
[null,null,null,null,null,null,null,null,null,null,null,null,null,null,null,null,null,null,null,null,null,null,null,null,null,null,null,null,null,null,null,null,null,null,null,null,null,null,null,null,null,null,null,null,null,null,null,null,null,"タイ","THAILAND",null,null,511,"大阪営業部"]
[null,null,null,null,null,null,null,null,null,null,null,null,null,null,null,null,null,null,null,null,null,null,null,null,null,null,null,null,null,null,null,null,null,null,null,null,null,null,null,null,null,null,null,null,null,null,null,null,null,"大韓民国","KOREA, REPUBLIC OF",null,null,513,"新大阪支店"]
[null,null,null,null,null,null,null,null,null,null,null,null,null,null,null,null,null,null,null,null,null,null,null,null,null,null,null,null,null,null,null,null,null,null,null,null,null,null,null,null,null,null,null,null,null,null,null,null,null,"台湾","TAIWAN",null,null,514,"難波支店"]
[null,null,null,null,null,null,null,null,null,null,null,null,null,null,null,null,null,null,null,null,null,null,null,null,null,null,null,null,null,null,null,null,null,null,null,null,null,null,null,null,null,null,null,null,null,null,null,null,null,"タジキスタン","TAJIKISTAN",null,null,515,"城東支店"]
[null,null,null,null,null,null,null,null,null,null,null,null,null,null,null,null,null,null,null,null,null,null,null,null,null,null,null,null,null,null,null,null,null,null,null,null,null,null,null,null,null,null,null,null,null,null,null,null,null,"タンザニア","TANZANIA",null,null,516,"歌島橋支店"]
[null,null,null,null,null,null,null,null,null,null,null,null,null,null,null,null,null,null,null,null,null,null,null,null,null,null,null,null,null,null,null,null,null,null,null,null,null,null,null,null,null,null,null,null,null,null,null,null,null,"チェコ","CZECH REPUBLIC",null,null,520,"枚方支店"]
[null,null,null,null,null,null,null,null,null,null,null,null,null,null,null,null,null,null,null,null,null,null,null,null,null,null,null,null,null,null,null,null,null,null,null,null,null,null,null,null,null,null,null,null,null,null,null,null,null,"チャド","CHAD",null,null,521,"牧野支店"]
[null,null,null,null,null,null,null,null,null,null,null,null,null,null,null,null,null,null,null,null,null,null,null,null,null,null,null,null,null,null,null,null,null,null,null,null,null,null,null,null,null,null,null,null,null,null,null,null,null,"中央アフリカ","CENTRAL AFRICAN REPUBLIC",null,null,522,"高槻支店"]
[null,null,null,null,null,null,null,null,null,null,null,null,null,null,null,null,null,null,null,null,null,null,null,null,null,null,null,null,null,null,null,null,null,null,null,null,null,null,null,null,null,null,null,null,null,null,null,null,null,"中華人民共和国","CHINA",null,null,523,"山崎支店"]
[null,null,null,null,null,null,null,null,null,null,null,null,null,null,null,null,null,null,null,null,null,null,null,null,null,null,null,null,null,null,null,null,null,null,null,null,null,null,null,null,null,null,null,null,null,null,null,null,null,"チュニジア","TUNISIA",null,null,524,"寝屋川支店"]
[null,null,null,null,null,null,null,null,null,null,null,null,null,null,null,null,null,null,null,null,null,null,null,null,null,null,null,null,null,null,null,null,null,null,null,null,null,null,null,null,null,null,null,null,null,null,null,null,null,"チリ","CHILE",null,null,526,"高槻南支店"]
[null,null,null,null,null,null,null,null,null,null,null,null,null,null,null,null,null,null,null,null,null,null,null,null,null,null,null,null,null,null,null,null,null,null,null,null,null,null,null,null,null,null,null,null,null,null,null,null,null,"ツバル","TUVALU",null,null,528,"くずは支店"]
[null,null,null,null,null,null,null,null,null,null,null,null,null,null,null,null,null,null,null,null,null,null,null,null,null,null,null,null,null,null,null,null,null,null,null,null,null,null,null,null,null,null,null,null,null,null,null,null,null,"デンマーク","DENMARK",null,null,530,"津田支店"]
[null,null,null,null,null,null,null,null,null,null,null,null,null,null,null,null,null,null,null,null,null,null,null,null,null,null,null,null,null,null,null,null,null,null,null,null,null,null,null,null,null,null,null,null,null,null,null,null,null,"ドイツ","GERMANY",null,null,531,"門真支店"]
[null,null,null,null,null,null,null,null,null,null,null,null,null,null,null,null,null,null,null,null,null,null,null,null,null,null,null,null,null,null,null,null,null,null,null,null,null,null,null,null,null,null,null,null,null,null,null,null,null,"トーゴ","TOGO",null,null,532,"茨木支店"]
[null,null,null,null,null,null,null,null,null,null,null,null,null,null,null,null,null,null,null,null,null,null,null,null,null,null,null,null,null,null,null,null,null,null,null,null,null,null,null,null,null,null,null,null,null,null,null,null,null,"トケラウ諸島","TOKELAU ISLANDS",null,null,533,"東大阪支店"]
[null,null,null,null,null,null,null,null,null,null,null,null,null,null,null,null,null,null,null,null,null,null,null,null,null,null,null,null,null,null,null,null,null,null,null,null,null,null,null,null,null,null,null,null,null,null,null,null,null,"ドミニカ","DOMINICA",null,null,534,"八尾支店"]
[null,null,null,null,null,null,null,null,null,null,null,null,null,null,null,null,null,null,null,null,null,null,null,null,null,null,null,null,null,null,null,null,null,null,null,null,null,null,null,null,null,null,null,null,null,null,null,null,null,"ドミニカ共和国","DOMINICAN REPUBLIC",null,null,535,"鴻池新田支店"]
[null,null,null,null,null,null,null,null,null,null,null,null,null,null,null,null,null,null,null,null,null,null,null,null,null,null,null,null,null,null,null,null,null,null,null,null,null,null,null,null,null,null,null,null,null,null,null,null,null,"トリニダード・トバゴ","TRINIDAD AND TOBAGO",null,null,536,"千里中央支店"]
[null,null,null,null,null,null,null,null,null,null,null,null,null,null,null,null,null,null,null,null,null,null,null,null,null,null,null,null,null,null,null,null,null,null,null,null,null,null,null,null,null,null,null,null,null,null,null,null,null,"トルクメニスタン","TURKMENISTAN",null,null,537,"堺支店"]
[null,null,null,null,null,null,null,null,null,null,null,null,null,null,null,null,null,null,null,null,null,null,null,null,null,null,null,null,null,null,null,null,null,null,null,null,null,null,null,null,null,null,null,null,null,null,null,null,null,"トルコ","TURKEY",null,null,538,"豊中支店"]
[null,null,null,null,null,null,null,null,null,null,null,null,null,null,null,null,null,null,null,null,null,null,null,null,null,null,null,null,null,null,null,null,null,null,null,null,null,null,null,null,null,null,null,null,null,null,null,null,null,"トンガ","TONGA",null,null,539,"吹田支店"]
[null,null,null,null,null,null,null,null,null,null,null,null,null,null,null,null,null,null,null,null,null,null,null,null,null,null,null,null,null,null,null,null,null,null,null,null,null,null,null,null,null,null,null,null,null,null,null,null,null,"ナイジェリア","NIGERIA",null,null,540,"高の原支店"]
[null,null,null,null,null,null,null,null,null,null,null,null,null,null,null,null,null,null,null,null,null,null,null,null,null,null,null,null,null,null,null,null,null,null,null,null,null,null,null,null,null,null,null,null,null,null,null,null,null,"ナウル","REPUBLIC OF NAURU",null,null,542,"奈良支店"]
[null,null,null,null,null,null,null,null,null,null,null,null,null,null,null,null,null,null,null,null,null,null,null,null,null,null,null,null,null,null,null,null,null,null,null,null,null,null,null,null,null,null,null,null,null,null,null,null,null,"ナミビア","NAMIBIA",null,null,543,"登美ヶ丘支店"]
[null,null,null,null,null,null,null,null,null,null,null,null,null,null,null,null,null,null,null,null,null,null,null,null,null,null,null,null,null,null,null,null,null,null,null,null,null,null,null,null,null,null,null,null,null,null,null,null,null,"ニウェ島","NIUE",null,null,544,"橿原支店"]
[null,null,null,null,null,null,null,null,null,null,null,null,null,null,null,null,null,null,null,null,null,null,null,null,null,null,null,null,null,null,null,null,null,null,null,null,null,null,null,null,null,null,null,null,null,null,null,null,null,"ニカラグア","NICARAGUA",null,null,545,"大和郡山支店"]
[null,null,null,null,null,null,null,null,null,null,null,null,null,null,null,null,null,null,null,null,null,null,null,null,null,null,null,null,null,null,null,null,null,null,null,null,null,null,null,null,null,null,null,null,null,null,null,null,null,"ニジェール","NIGER",null,null,546,"生駒支店"]
[null,null,null,null,null,null,null,null,null,null,null,null,null,null,null,null,null,null,null,null,null,null,null,null,null,null,null,null,null,null,null,null,null,null,null,null,null,null,null,null,null,null,null,null,null,null,null,null,null,"西サハラ","WESTERN SAHARA",null,null,547,"王寺支店"]
[null,null,null,null,null,null,null,null,null,null,null,null,null,null,null,null,null,null,null,null,null,null,null,null,null,null,null,null,null,null,null,null,null,null,null,null,null,null,null,null,null,null,null,null,null,null,null,null,null,"ニューカレドニア","NEW CALEDONIA",null,null,551,"東京営業部"]
[null,null,null,null,null,null,null,null,null,null,null,null,null,null,null,null,null,null,null,null,null,null,null,null,null,null,null,null,null,null,null,null,null,null,null,null,null,null,null,null,null,null,null,null,null,null,null,null,null,"ニュージーランド","NEW ZEALAND",null,null,555,"名古屋支店"]
[null,null,null,null,null,null,null,null,null,null,null,null,null,null,null,null,null,null,null,null,null,null,null,null,null,null,null,null,null,null,null,null,null,null,null,null,null,null,null,null,null,null,null,null,null,null,null,null,null,"ネパール","NEPAL",null,null,556,"刈谷支店"]
[null,null,null,null,null,null,null,null,null,null,null,null,null,null,null,null,null,null,null,null,null,null,null,null,null,null,null,null,null,null,null,null,null,null,null,null,null,null,null,null,null,null,null,null,null,null,null,null,null,"ノルウェー","NORWAY",null,null,560,"尼崎支店"]
[null,null,null,null,null,null,null,null,null,null,null,null,null,null,null,null,null,null,null,null,null,null,null,null,null,null,null,null,null,null,null,null,null,null,null,null,null,null,null,null,null,null,null,null,null,null,null,null,null,"バージン諸島","VIRGIN ISLANDS OF THE UNITED STATES",null,null,562,"神戸支店"]
[null,null,null,null,null,null,null,null,null,null,null,null,null,null,null,null,null,null,null,null,null,null,null,null,null,null,null,null,null,null,null,null,null,null,null,null,null,null,null,null,null,null,null,null,null,null,null,null,null,"バーレーン","BAHRAIN",null,null,563,"川西支店"]
[null,null,null,null,null,null,null,null,null,null,null,null,null,null,null,null,null,null,null,null,null,null,null,null,null,null,null,null,null,null,null,null,null,null,null,null,null,null,null,null,null,null,null,null,null,null,null,null,null,"ハイチ","HAITI",null,null,564,"六甲道支店"]
[null,null,null,null,null,null,null,null,null,null,null,null,null,null,null,null,null,null,null,null,null,null,null,null,null,null,null,null,null,null,null,null,null,null,null,null,null,null,null,null,null,null,null,null,null,null,null,null,null,"パキスタン","PAKISTAN",null,null,565,"西宮支店"]
[null,null,null,null,null,null,null,null,null,null,null,null,null,null,null,null,null,null,null,null,null,null,null,null,null,null,null,null,null,null,null,null,null,null,null,null,null,null,null,null,null,null,null,null,null,null,null,null,null,"バチカン","STATE OF THE CITY OF VATICAN",null,null,566,"伊丹支店"]
[null,null,null,null,null,null,null,null,null,null,null,null,null,null,null,null,null,null,null,null,null,null,null,null,null,null,null,null,null,null,null,null,null,null,null,null,null,null,null,null,null,null,null,null,null,null,null,null,null,"パナマ","PANAMA",null,null,567,"JR尼崎駅前支店"]
[null,null,null,null,null,null,null,null,null,null,null,null,null,null,null,null,null,null,null,null,null,null,null,null,null,null,null,null,null,null,null,null,null,null,null,null,null,null,null,null,null,null,null,null,null,null,null,null,null,"パナマ運河地帯","CANAL ZONE",null,null,568,"尼崎北支店"]
[null,null,null,null,null,null,null,null,null,null,null,null,null,null,null,null,null,null,null,null,null,null,null,null,null,null,null,null,null,null,null,null,null,null,null,null,null,null,null,null,null,null,null,null,null,null,null,null,null,"バヌアツ","VANUATU",null,null,570,"新石切支店"]
[null,null,null,null,null,null,null,null,null,null,null,null,null,null,null,null,null,null,null,null,null,null,null,null,null,null,null,null,null,null,null,null,null,null,null,null,null,null,null,null,null,null,null,null,null,null,null,null,null,"バハマ","THE COMMONWEALTH OF THE BAHAMAS",null,null,571,"交野支店"]
[null,null,null,null,null,null,null,null,null,null,null,null,null,null,null,null,null,null,null,null,null,null,null,null,null,null,null,null,null,null,null,null,null,null,null,null,null,null,null,null,null,null,null,null,null,null,null,null,null,"パプアニューギニア","PAPUA NEW GUINEA",null,null,572,"摂津支店"]
[null,null,null,null,null,null,null,null,null,null,null,null,null,null,null,null,null,null,null,null,null,null,null,null,null,null,null,null,null,null,null,null,null,null,null,null,null,null,null,null,null,null,null,null,null,null,null,null,null,"バミューダ諸島","BERMUDA",null,null,573,"大日支店"]
[null,null,null,null,null,null,null,null,null,null,null,null,null,null,null,null,null,null,null,null,null,null,null,null,null,null,null,null,null,null,null,null,null,null,null,null,null,null,null,null,null,null,null,null,null,null,null,null,null,"パラオ","PALAU",null,null,574,"池田支店"]
[null,null,null,null,null,null,null,null,null,null,null,null,null,null,null,null,null,null,null,null,null,null,null,null,null,null,null,null,null,null,null,null,null,null,null,null,null,null,null,null,null,null,null,null,null,null,null,null,null,"パラグアイ","PARAGUAY",null,null,575,"堺北花田支店"]
[null,null,null,null,null,null,null,null,null,null,null,null,null,null,null,null,null,null,null,null,null,null,null,null,null,null,null,null,null,null,null,null,null,null,null,null,null,null,null,null,null,null,null,null,null,null,null,null,null,"バルバドス","BARBADOS",null,null,576,"高槻城北支店"]
[null,null,null,null,null,null,null,null,null,null,null,null,null,null,null,null,null,null,null,null,null,null,null,null,null,null,null,null,null,null,null,null,null,null,null,null,null,null,null,null,null,null,null,null,null,null,null,null,null,"ハンガリー","HUNGARY",null,null,577,"北野田支店"]
[null,null,null,null,null,null,null,null,null,null,null,null,null,null,null,null,null,null,null,null,null,null,null,null,null,null,null,null,null,null,null,null,null,null,null,null,null,null,null,null,null,null,null,null,null,null,null,null,null,"バングラデシュ","BANGLADESH",null,null,578,"鳳支店"]
[null,null,null,null,null,null,null,null,null,null,null,null,null,null,null,null,null,null,null,null,null,null,null,null,null,null,null,null,null,null,null,null,null,null,null,null,null,null,null,null,null,null,null,null,null,null,null,null,null,"東ティモール","EAST TIMOR",null,null,592,"八日市支店"]
[null,null,null,null,null,null,null,null,null,null,null,null,null,null,null,null,null,null,null,null,null,null,null,null,null,null,null,null,null,null,null,null,null,null,null,null,null,null,null,null,null,null,null,null,null,null,null,null,null,"ピットケルン","PITCAIRN",null,null,593,"水口支店"]
[null,null,null,null,null,null,null,null,null,null,null,null,null,null,null,null,null,null,null,null,null,null,null,null,null,null,null,null,null,null,null,null,null,null,null,null,null,null,null,null,null,null,null,null,null,null,null,null,null,"フィジー","FIJI",null,null,594,"守山支店"]
[null,null,null,null,null,null,null,null,null,null,null,null,null,null,null,null,null,null,null,null,null,null,null,null,null,null,null,null,null,null,null,null,null,null,null,null,null,null,null,null,null,null,null,null,null,null,null,null,null,"フィリピン","PHILIPPINES",null,null,595,"長浜支店"]
[null,null,null,null,null,null,null,null,null,null,null,null,null,null,null,null,null,null,null,null,null,null,null,null,null,null,null,null,null,null,null,null,null,null,null,null,null,null,null,null,null,null,null,null,null,null,null,null,null,"フィンランド","FINLAND",null,null,608,"公務地域連携部"]
[null,null,null,null,null,null,null,null,null,null,null,null,null,null,null,null,null,null,null,null,null,null,null,null,null,null,null,null,null,null,null,null,null,null,null,null,null,null,null,null,null,null,null,null,null,null,null,null,null,"ブータン","BHUTAN",null,null,701,"営業本部（営業企画）"]
[null,null,null,null,null,null,null,null,null,null,null,null,null,null,null,null,null,null,null,null,null,null,null,null,null,null,null,null,null,null,null,null,null,null,null,null,null,null,null,null,null,null,null,null,null,null,null,null,null,"プエルトリコ","PUERTO RICO",null,null,703,"営業本部（営業推進）"]
[null,null,null,null,null,null,null,null,null,null,null,null,null,null,null,null,null,null,null,null,null,null,null,null,null,null,null,null,null,null,null,null,null,null,null,null,null,null,null,null,null,null,null,null,null,null,null,null,null,"フォークランド諸島","FALKLAND ISLANDS",null,null,754,"個人総合コンサルティング"]
[null,null,null,null,null,null,null,null,null,null,null,null,null,null,null,null,null,null,null,null,null,null,null,null,null,null,null,null,null,null,null,null,null,null,null,null,null,null,null,null,null,null,null,null,null,null,null,null,null,"ブラジル","BRAZIL",null,null,771,"国際営業部"]
[null,null,null,null,null,null,null,null,null,null,null,null,null,null,null,null,null,null,null,null,null,null,null,null,null,null,null,null,null,null,null,null,null,null,null,null,null,null,null,null,null,null,null,null,null,null,null,null,null,"フランス","FRANCE",null,null,801,"ネットダイレクト支店"]
[null,null,null,null,null,null,null,null,null,null,null,null,null,null,null,null,null,null,null,null,null,null,null,null,null,null,null,null,null,null,null,null,null,null,null,null,null,null,null,null,null,null,null,null,null,null,null,null,null,"ブルガリア","BULGARIA",null,null,895,"新規開拓ブロック"]
[null,null,null,null,null,null,null,null,null,null,null,null,null,null,null,null,null,null,null,null,null,null,null,null,null,null,null,null,null,null,null,null,null,null,null,null,null,null,null,null,null,null,null,null,null,null,null,null,null,"ブルキナファソ","BURKINA FASO"]
[null,null,null,null,null,null,null,null,null,null,null,null,null,null,null,null,null,null,null,null,null,null,null,null,null,null,null,null,null,null,null,null,null,null,null,null,null,null,null,null,null,null,null,null,null,null,null,null,null,"ブルネイ","BRUNEI DARUSSALAM"]
[null,null,null,null,null,null,null,null,null,null,null,null,null,null,null,null,null,null,null,null,null,null,null,null,null,null,null,null,null,null,null,null,null,null,null,null,null,null,null,null,null,null,null,null,null,null,null,null,null,"ブルンジ","BURUNDI"]
[null,null,null,null,null,null,null,null,null,null,null,null,null,null,null,null,null,null,null,null,null,null,null,null,null,null,null,null,null,null,null,null,null,null,null,null,null,null,null,null,null,null,null,null,null,null,null,null,null,"ベトナム","VIET NAM"]
[null,null,null,null,null,null,null,null,null,null,null,null,null,null,null,null,null,null,null,null,null,null,null,null,null,null,null,null,null,null,null,null,null,null,null,null,null,null,null,null,null,null,null,null,null,null,null,null,null,"ベナン","REPUBLIC OF BENIN"]
[null,null,null,null,null,null,null,null,null,null,null,null,null,null,null,null,null,null,null,null,null,null,null,null,null,null,null,null,null,null,null,null,null,null,null,null,null,null,null,null,null,null,null,null,null,null,null,null,null,"ベネズエラ","VENEZUELA"]
[null,null,null,null,null,null,null,null,null,null,null,null,null,null,null,null,null,null,null,null,null,null,null,null,null,null,null,null,null,null,null,null,null,null,null,null,null,null,null,null,null,null,null,null,null,null,null,null,null,"ベラルーシ","BELARUS"]
[null,null,null,null,null,null,null,null,null,null,null,null,null,null,null,null,null,null,null,null,null,null,null,null,null,null,null,null,null,null,null,null,null,null,null,null,null,null,null,null,null,null,null,null,null,null,null,null,null,"ベリーズ","BELIZE"]
[null,null,null,null,null,null,null,null,null,null,null,null,null,null,null,null,null,null,null,null,null,null,null,null,null,null,null,null,null,null,null,null,null,null,null,null,null,null,null,null,null,null,null,null,null,null,null,null,null,"ペルー","PERU"]
[null,null,null,null,null,null,null,null,null,null,null,null,null,null,null,null,null,null,null,null,null,null,null,null,null,null,null,null,null,null,null,null,null,null,null,null,null,null,null,null,null,null,null,null,null,null,null,null,null,"ベルギー","BELGIUM"]
[null,null,null,null,null,null,null,null,null,null,null,null,null,null,null,null,null,null,null,null,null,null,null,null,null,null,null,null,null,null,null,null,null,null,null,null,null,null,null,null,null,null,null,null,null,null,null,null,null,"ポーランド","POLAND"]
[null,null,null,null,null,null,null,null,null,null,null,null,null,null,null,null,null,null,null,null,null,null,null,null,null,null,null,null,null,null,null,null,null,null,null,null,null,null,null,null,null,null,null,null,null,null,null,null,null,"ボスニア・ヘルツェゴビナ","BOSNIA AND HERZEGOVINA"]
[null,null,null,null,null,null,null,null,null,null,null,null,null,null,null,null,null,null,null,null,null,null,null,null,null,null,null,null,null,null,null,null,null,null,null,null,null,null,null,null,null,null,null,null,null,null,null,null,null,"ボツワナ","BOTSWANA"]
[null,null,null,null,null,null,null,null,null,null,null,null,null,null,null,null,null,null,null,null,null,null,null,null,null,null,null,null,null,null,null,null,null,null,null,null,null,null,null,null,null,null,null,null,null,null,null,null,null,"ボリビア","BOLIVIA"]
[null,null,null,null,null,null,null,null,null,null,null,null,null,null,null,null,null,null,null,null,null,null,null,null,null,null,null,null,null,null,null,null,null,null,null,null,null,null,null,null,null,null,null,null,null,null,null,null,null,"ポルトガル","PORTUGAL"]
[null,null,null,null,null,null,null,null,null,null,null,null,null,null,null,null,null,null,null,null,null,null,null,null,null,null,null,null,null,null,null,null,null,null,null,null,null,null,null,null,null,null,null,null,null,null,null,null,null,"香港","HONG KONG"]
[null,null,null,null,null,null,null,null,null,null,null,null,null,null,null,null,null,null,null,null,null,null,null,null,null,null,null,null,null,null,null,null,null,null,null,null,null,null,null,null,null,null,null,null,null,null,null,null,null,"ホンジュラス","HONDURAS"]
[null,null,null,null,null,null,null,null,null,null,null,null,null,null,null,null,null,null,null,null,null,null,null,null,null,null,null,null,null,null,null,null,null,null,null,null,null,null,null,null,null,null,null,null,null,null,null,null,null,"マーシャル","MARSHALL ISLANDS"]
[null,null,null,null,null,null,null,null,null,null,null,null,null,null,null,null,null,null,null,null,null,null,null,null,null,null,null,null,null,null,null,null,null,null,null,null,null,null,null,null,null,null,null,null,null,null,null,null,null,"マカオ","MACAO"]
[null,null,null,null,null,null,null,null,null,null,null,null,null,null,null,null,null,null,null,null,null,null,null,null,null,null,null,null,null,null,null,null,null,null,null,null,null,null,null,null,null,null,null,null,null,null,null,null,null,"マケドニア","MAKEDONIA"]
[null,null,null,null,null,null,null,null,null,null,null,null,null,null,null,null,null,null,null,null,null,null,null,null,null,null,null,null,null,null,null,null,null,null,null,null,null,null,null,null,null,null,null,null,null,null,null,null,null,"マダガスカル","MADAGASCAR"]
[null,null,null,null,null,null,null,null,null,null,null,null,null,null,null,null,null,null,null,null,null,null,null,null,null,null,null,null,null,null,null,null,null,null,null,null,null,null,null,null,null,null,null,null,null,null,null,null,null,"マラウイ","MALAWI"]
[null,null,null,null,null,null,null,null,null,null,null,null,null,null,null,null,null,null,null,null,null,null,null,null,null,null,null,null,null,null,null,null,null,null,null,null,null,null,null,null,null,null,null,null,null,null,null,null,null,"マリ","MALI"]
[null,null,null,null,null,null,null,null,null,null,null,null,null,null,null,null,null,null,null,null,null,null,null,null,null,null,null,null,null,null,null,null,null,null,null,null,null,null,null,null,null,null,null,null,null,null,null,null,null,"マルタ","MALTA"]
[null,null,null,null,null,null,null,null,null,null,null,null,null,null,null,null,null,null,null,null,null,null,null,null,null,null,null,null,null,null,null,null,null,null,null,null,null,null,null,null,null,null,null,null,null,null,null,null,null,"マレーシア","MALAYSIA"]
[null,null,null,null,null,null,null,null,null,null,null,null,null,null,null,null,null,null,null,null,null,null,null,null,null,null,null,null,null,null,null,null,null,null,null,null,null,null,null,null,null,null,null,null,null,null,null,null,null,"マン島","ISLE OF MAN"]
[null,null,null,null,null,null,null,null,null,null,null,null,null,null,null,null,null,null,null,null,null,null,null,null,null,null,null,null,null,null,null,null,null,null,null,null,null,null,null,null,null,null,null,null,null,null,null,null,null,"ミクロネシア","MICRONESIA"]
[null,null,null,null,null,null,null,null,null,null,null,null,null,null,null,null,null,null,null,null,null,null,null,null,null,null,null,null,null,null,null,null,null,null,null,null,null,null,null,null,null,null,null,null,null,null,null,null,null,"南アフリカ共和国","SOUTH AFRICA"]
[null,null,null,null,null,null,null,null,null,null,null,null,null,null,null,null,null,null,null,null,null,null,null,null,null,null,null,null,null,null,null,null,null,null,null,null,null,null,null,null,null,null,null,null,null,null,null,null,null,"ミャンマー","MYANMAR"]
[null,null,null,null,null,null,null,null,null,null,null,null,null,null,null,null,null,null,null,null,null,null,null,null,null,null,null,null,null,null,null,null,null,null,null,null,null,null,null,null,null,null,null,null,null,null,null,null,null,"メキシコ","MEXICO"]
[null,null,null,null,null,null,null,null,null,null,null,null,null,null,null,null,null,null,null,null,null,null,null,null,null,null,null,null,null,null,null,null,null,null,null,null,null,null,null,null,null,null,null,null,null,null,null,null,null,"モーリシャス","MAURITIUS"]
[null,null,null,null,null,null,null,null,null,null,null,null,null,null,null,null,null,null,null,null,null,null,null,null,null,null,null,null,null,null,null,null,null,null,null,null,null,null,null,null,null,null,null,null,null,null,null,null,null,"モーリタニア","MAURITANIA"]
[null,null,null,null,null,null,null,null,null,null,null,null,null,null,null,null,null,null,null,null,null,null,null,null,null,null,null,null,null,null,null,null,null,null,null,null,null,null,null,null,null,null,null,null,null,null,null,null,null,"モザンビーク","MOZAMBIQUE"]
[null,null,null,null,null,null,null,null,null,null,null,null,null,null,null,null,null,null,null,null,null,null,null,null,null,null,null,null,null,null,null,null,null,null,null,null,null,null,null,null,null,null,null,null,null,null,null,null,null,"モナコ","MONACO"]
[null,null,null,null,null,null,null,null,null,null,null,null,null,null,null,null,null,null,null,null,null,null,null,null,null,null,null,null,null,null,null,null,null,null,null,null,null,null,null,null,null,null,null,null,null,null,null,null,null,"モルディブ","MALDIVES"]
[null,null,null,null,null,null,null,null,null,null,null,null,null,null,null,null,null,null,null,null,null,null,null,null,null,null,null,null,null,null,null,null,null,null,null,null,null,null,null,null,null,null,null,null,null,null,null,null,null,"モルドバ","MOLDOVA"]
[null,null,null,null,null,null,null,null,null,null,null,null,null,null,null,null,null,null,null,null,null,null,null,null,null,null,null,null,null,null,null,null,null,null,null,null,null,null,null,null,null,null,null,null,null,null,null,null,null,"モロッコ","MOROCCO"]
[null,null,null,null,null,null,null,null,null,null,null,null,null,null,null,null,null,null,null,null,null,null,null,null,null,null,null,null,null,null,null,null,null,null,null,null,null,null,null,null,null,null,null,null,null,null,null,null,null,"モンゴル","MONGOLIA"]
[null,null,null,null,null,null,null,null,null,null,null,null,null,null,null,null,null,null,null,null,null,null,null,null,null,null,null,null,null,null,null,null,null,null,null,null,null,null,null,null,null,null,null,null,null,null,null,null,null,"モントセラト","MONTSERRAT"]
[null,null,null,null,null,null,null,null,null,null,null,null,null,null,null,null,null,null,null,null,null,null,null,null,null,null,null,null,null,null,null,null,null,null,null,null,null,null,null,null,null,null,null,null,null,null,null,null,null,"ヨルダン","JORDAN"]
[null,null,null,null,null,null,null,null,null,null,null,null,null,null,null,null,null,null,null,null,null,null,null,null,null,null,null,null,null,null,null,null,null,null,null,null,null,null,null,null,null,null,null,null,null,null,null,null,null,"ヨルダン川西岸地区及びガザ地区","GAZA"]
[null,null,null,null,null,null,null,null,null,null,null,null,null,null,null,null,null,null,null,null,null,null,null,null,null,null,null,null,null,null,null,null,null,null,null,null,null,null,null,null,null,null,null,null,null,null,null,null,null,"ラオス","LAOS"]
[null,null,null,null,null,null,null,null,null,null,null,null,null,null,null,null,null,null,null,null,null,null,null,null,null,null,null,null,null,null,null,null,null,null,null,null,null,null,null,null,null,null,null,null,null,null,null,null,null,"ラトビア","LATVIA"]
[null,null,null,null,null,null,null,null,null,null,null,null,null,null,null,null,null,null,null,null,null,null,null,null,null,null,null,null,null,null,null,null,null,null,null,null,null,null,null,null,null,null,null,null,null,null,null,null,null,"リトアニア","LITHUANIA"]
[null,null,null,null,null,null,null,null,null,null,null,null,null,null,null,null,null,null,null,null,null,null,null,null,null,null,null,null,null,null,null,null,null,null,null,null,null,null,null,null,null,null,null,null,null,null,null,null,null,"リビア","LIBYA"]
[null,null,null,null,null,null,null,null,null,null,null,null,null,null,null,null,null,null,null,null,null,null,null,null,null,null,null,null,null,null,null,null,null,null,null,null,null,null,null,null,null,null,null,null,null,null,null,null,null,"リヒテンシュタイン","LIECHTENSTEIN"]
[null,null,null,null,null,null,null,null,null,null,null,null,null,null,null,null,null,null,null,null,null,null,null,null,null,null,null,null,null,null,null,null,null,null,null,null,null,null,null,null,null,null,null,null,null,null,null,null,null,"リベリア","LIBERIA"]
[null,null,null,null,null,null,null,null,null,null,null,null,null,null,null,null,null,null,null,null,null,null,null,null,null,null,null,null,null,null,null,null,null,null,null,null,null,null,null,null,null,null,null,null,null,null,null,null,null,"ルーマニア","ROMANIA"]
[null,null,null,null,null,null,null,null,null,null,null,null,null,null,null,null,null,null,null,null,null,null,null,null,null,null,null,null,null,null,null,null,null,null,null,null,null,null,null,null,null,null,null,null,null,null,null,null,null,"ルクセンブルク","LUXEMBOURG"]
[null,null,null,null,null,null,null,null,null,null,null,null,null,null,null,null,null,null,null,null,null,null,null,null,null,null,null,null,null,null,null,null,null,null,null,null,null,null,null,null,null,null,null,null,null,null,null,null,null,"ルワンダ","RWANDA"]
[null,null,null,null,null,null,null,null,null,null,null,null,null,null,null,null,null,null,null,null,null,null,null,null,null,null,null,null,null,null,null,null,null,null,null,null,null,null,null,null,null,null,null,null,null,null,null,null,null,"レソト","LESOTHO"]
[null,null,null,null,null,null,null,null,null,null,null,null,null,null,null,null,null,null,null,null,null,null,null,null,null,null,null,null,null,null,null,null,null,null,null,null,null,null,null,null,null,null,null,null,null,null,null,null,null,"レバノン","LEBANON"]
[null,null,null,null,null,null,null,null,null,null,null,null,null,null,null,null,null,null,null,null,null,null,null,null,null,null,null,null,null,null,null,null,null,null,null,null,null,null,null,null,null,null,null,null,null,null,null,null,null,"レユニオン","REUNION"]
[null,null,null,null,null,null,null,null,null,null,null,null,null,null,null,null,null,null,null,null,null,null,null,null,null,null,null,null,null,null,null,null,null,null,null,null,null,null,null,null,null,null,null,null,null,null,null,null,null,"ロシア","RUSSIAN FEDERATION"]
[null,null,null,null,null,null,null,null,null,null,null,null,null,null,null,null,null,null,null,null,null,null,null,null,null,null,null,null,null,null,null,null,null,null,null,null,null,null,null,null,null,null,null,null,null,null,null,null,null,"ワリス・フテュナ諸島","WALLIS AND FUTUNA ISLANDS"]
[null,null,null,null,null,null,null,null,null,null,null,null,null,null,null,null,null,null,null,null,null,null,null,null,null,null,null,null,null,null,null,null,null,null,null,null,null,null,null,null,null,null,null,null,null,null,null,null,null,"英領アンド洋地域","BRITISH INDIAN OCEAN TERRITORY"]
[null,null,null,null,null,null,null,null,null,null,null,null,null,null,null,null,null,null,null,null,null,null,null,null,null,null,null,null,null,null,null,null,null,null,null,null,null,null,null,null,null,null,null,null,null,null,null,null,null,"英領バージン諸島","BRITISH VIRGIN ISLANDS"]
[null,null,null,null,null,null,null,null,null,null,null,null,null,null,null,null,null,null,null,null,null,null,null,null,null,null,null,null,null,null,null,null,null,null,null,null,null,null,null,null,null,null,null,null,null,null,null,null,null,"英領南極地域","BRITISH ANTARCTIC TERRITORY"]
[null,null,null,null,null,null,null,null,null,null,null,null,null,null,null,null,null,null,null,null,null,null,null,null,null,null,null,null,null,null,null,null,null,null,null,null,null,null,null,null,null,null,null,null,null,null,null,null,null,"国際機関","INTERNATIONAL ORGANIZATION"]
[null,null,null,null,null,null,null,null,null,null,null,null,null,null,null,null,null,null,null,null,null,null,null,null,null,null,null,null,null,null,null,null,null,null,null,null,null,null,null,null,null,null,null,null,null,null,null,null,null,"仏領オセアニア","FRENCH OCEANIA"]
[null,null,null,null,null,null,null,null,null,null,null,null,null,null,null,null,null,null,null,null,null,null,null,null,null,null,null,null,null,null,null,null,null,null,null,null,null,null,null,null,null,null,null,null,null,null,null,null,null,"仏領ギアナ","FRENCH GUIANA"]
[null,null,null,null,null,null,null,null,null,null,null,null,null,null,null,null,null,null,null,null,null,null,null,null,null,null,null,null,null,null,null,null,null,null,null,null,null,null,null,null,null,null,null,null,null,null,null,null,null,"仏領ポリネシア","FRENCH POLYNESIA"]
[null,null,null,null,null,null,null,null,null,null,null,null,null,null,null,null,null,null,null,null,null,null,null,null,null,null,null,null,null,null,null,null,null,null,null,null,null,null,null,null,null,null,null,null,null,null,null,null,null,"仏領西インド諸島","GUADELOUPE"]
[null,null,null,null,null,null,null,null,null,null,null,null,null,null,null,null,null,null,null,null,null,null,null,null,null,null,null,null,null,null,null,null,null,null,null,null,null,null,null,null,null,null,null,null,null,null,null,null,null,"米領オセアニア","AMERICAN OCEANIA"]
[null,null,null,null,null,null,null,null,null,null,null,null,null,null,null,null,null,null,null,null,null,null,null,null,null,null,null,null,null,null,null,null,null,null,null,null,null,null,null,null,null,null,null,null,null,null,null,null,null,"米領サモア","AMERICAN SAMOA"]
[null,null,null,null,null,null,null,null,null,null,null,null,null,null,null,null,null,null,null,null,null,null,null,null,null,null,null,null,null,null,null,null,null,null,null,null,null,null,null,null,null,null,null,null,null,null,null,null,null,"蘭領アンティル","NETHERLANDS ANTILLES"]

{"sheet":"送金依頼書（印刷）","index":3,"n_rows":92,"n_cols":53,"rows_kept":92,"cut":false,"hidden":false,"merged":[[95,58,97,61],[94,46,94,49],[94,32,94,45],[94,27,94,30],[94,23,94,26],[94,54,94,57],[95,54,97,57],[94,58,94,61],[94,50,94,53],[4,2,5,7],[4,13,5,17],[46,13,46,18],[42,13,43,46],[44,13,45,46],[14,13,18,46],[19,13,22,46],[23,13,26,46],[27,14,28,46],[3,28,5,46],[3,18,5,27],[6,18,8,22],[6,23,8,27],[6,28,8,32],[6,33,8,46],[26,2,27,12],[24,2,24,11],[65,13,67,19],[65,20,67,26],[65,27,67,30],[62,13,64,19],[62,20,64,26],[47,13,47,18],[47,19,47,28],[47,29,47,33],[30,13,30,31],[33,13,34,46],[46,19,46,45],[48,13,53,28],[54,13,57,28],[58,13,61,28],[48,31,50,59],[79,42,80,42],[63,44,63,51],[91,36,91,40],[81,8,84,39],[73,80,74,87],[76,79,78,87],[62,52,64,59],[62,32,64,43],[62,27,64,30],[65,32,67,43],[65,52,67,59],[54,29,57,35],[51,31,53,59],[58,29,61,35],[54,36,57,43],[47,35,47,46],[54,44,57,51],[54,52,57,59],[58,52,61,59],[58,36,61,43],[58,44,61,51],[6,13,7,17],[37,23,40,46],[38,13,39,22],[9,13,13,46],[36,13,36,18],[36,19,36,28],[31,13,32,31],[30,32,30,46],[31,32,32,46],[36,29,36,33],[36,34,36,46],[35,13,35,18],[35,19,35,45],[94,18,94,22],[79,2,80,5],[79,8,80,10],[86,2,88,30],[79,26,80,28],[79,29,80,29],[79,30,80,41],[79,11,80,14],[79,15,80,16],[79,17,80,22],[79,23,80,23],[88,33,91,34]]}
[null,"株式会社　京都銀行　御中",null,null,null,null,null,null,null,null,null,null,null,null,null,null,null,null,null,null,null,null,null,null,null,null,null,null,null,null,null,"外国向送金依頼書兼告知書",null,null,null,null,null,null,null,null,null,null,null,"（Ver.1）"]
[null,null,null,null,null,null,null,null,null,null,null,null,null,null,null,null,null,null,null,null,"下記のとおり内国税の適正な課税の確保を図るための国外送金等に"]
[null,"＜送金依頼内容＞",null,null,null,null,null,null,null,null,null,null,null,null,null,null,null,null,null,null,"係る調書の提出等に関する法律第3条に定める告知を行います。"]
[null,null,null,null,null,null,null,null,null,null,null,null,null,null,null,null,null,null,"ご依頼日/ご来店日\n(DATE)",null,null,null,null,null,null,null,null,null,"西暦　　　　　年　　　月　　　日",null,null,null,null,null,null,null,null,null,null,null,null,null,null,null,null,null,null,null,"【受付店使用欄】"]
[null,null,"ご送金種類",null,null,null,null,null,null,null,null,null,null,"電信送金"]
[]
[null,null,"(REMITTANCE BY)",null,null,null,null,null,null,null,null,null,null,"(TELEGRAPHIC TRANSFER)",null,null,null,null,"ご送金通貨\n（CURRENCY)",null,null,null,null,{"$f":"IF(入力シート!S5=\"\",\"\",入力シート!S5)","v":""},null,null,null,null,"ご送金金額\n（REMIT AMOUNT)",null,null,null,null,{"$f":"IF(入力シート!L6=\"\",\"\",入力シート!L6)","v":""}]
[]
[]
[null,null,null,null,null,null,null,null,null,null,null,null,null,{"$f":"IF(入力シート!L9=\"\",\"\",ASC(UPPER(入力シート!L9)))","v":""}]
[null,null,"ご依頼人英文名"]
[null,null,"（APPLICANT'S NAME"]
[null,null," IN PRINT)",null,null,null,null,null,null,null,null,null,null,null,null,null,null,null,null,null,null,null,null,null,null,null,null,null,null,null,null,null,null,null,null,null,null,null,null,null,null,null,null,null,null,null,null,null,"【国際営業部処理欄】"]
[]
[null,null,null,null,null,null,null,null,null,null,null,null,null,{"$f":"IF(入力シート!L10=\"\",\"\",ASC(UPPER(入力シート!L10)))","v":""}]
[null,null,"ご依頼人英文住所"]
[null,null,"(APPLICANT'S ADDRESS"]
[null,null,"IN PRINT)"]
[]
[null,null,null,null,null,null,null,null,null,null,null,null,null,{"$f":"IF(入力シート!L12=\"\",\"\",入力シート!L12)","v":"通知払(ADVICE AND PAY)〔ご指定口座入金〕"}]
[null,null,"お支払方法"]
[null,null,"(PAYMENT INSTRUCTION)"]
[]
[null,null,null,null,null,null,null,null,null,null,null,null,null,{"$f":"IF(入力シート!L27=\"\",\"\",ASC(UPPER(入力シート!L27)))","v":""}]
[null,null,"お受取人取引銀行等手数料"]
[null,null,"(支払銀行手数料)"]
[null,null,"(PAYING BANK'S CHARGES IF ANY, ARE FOR A/C OF)"]
[null,null,null,null,null,null,null,null,null,null,null,null,null,null,"海外の銀行によっては、ご依頼人負担とされた場合でも独自の基準でお受取人より手数料を徴収することがあります。"]
[]
[]
[null,null,null,null,null,null,null,null,null,null,null,null,null,"銀行名 (PAYING BANK) ・ 支店名(BRANCH) ・ 住所(ADDRESS)",null,null,null,null,null,null,null,null,null,null,null,null,null,null,null,null,null,null," 銀行コード（ＳＷＩＦＴ, ABA NO.等）"]
[null,null,"お受取人取引銀行・支店",null,null,null,null,null,null,null,null,null,null,{"$f":"IF(入力シート!L17=\"\",\"\",ASC(UPPER(入力シート!L17)))","v":""},null,null,null,null,null,null,null,null,null,null,null,null,null,null,null,null,null,null,{"$f":"IF(入力シート!L15=\"\",\"\",ASC(UPPER(入力シート!L15&CHAR(10)&入力シート!L16)))","v":""}]
[null,null,"(PAYING BANK AND BRANCH)"]
[null,null,null,null,null,null,null,null,null,null,null,null,null,{"$f":"IF(入力シート!L18=\"\",\"\",ASC(UPPER(入力シート!L18)))","v":""}]
[]
[null,null,null,null,null,null,null,null,null,null,null,null,null,"都市名(CITY) ",null,null,null,null,null,{"$f":"IF(入力シート!L22=\"\",\"\",ASC(UPPER(入力シート!L22)))","v":""}]
[null,null,null,null,null,null,null,null,null,null,null,null,null,"州名(STATE)",null,null,null,null,null,{"$f":"IF(入力シート!L21=\"\",\"\",ASC(UPPER(入力シート!L21)))","v":""},null,null,null,null,null,null,null,null,null,"国名(COUNTRY)",null,null,null,null,{"$f":"IF(入力シート!R20=\"\",\"\",ASC(UPPER(入力シート!R20)))","v":""}]
[null,null,null,null,null,null,null,null,null,null,null,null,null,null,null,null,null,null,null,null,null,null,null,{"$f":"IF(入力シート!P23=\"\",\"\",ASC(UPPER(入力シート!P23)))","v":""}]
[null,null,"お受取人名",null,null,null,null,null,null,null,null,null,null,"お受取人口座番号(A/C NO.)\n(欧州向けの場合はIBAN)"]
[null,null,"(PAYEE'S NAME)"]
[]
[]
[null,null,null,null,null,null,null,null,null,null,null,null,null,{"$f":"IF(入力シート!L30=\"\",\"\",ASC(UPPER(入力シート!L30)))","v":""}]
[]
[null,null,"お受取人住所",null,null,null,null,null,null,null,null,null,null,{"$f":"IF(入力シート!L34=\"\",\"\",ASC(UPPER(入力シート!L34)))","v":""}]
[null,null,"(PAYEE'S ADDRESS)"]
[null,null,null,null,null,null,null,null,null,null,null,null,null,"都市名(CITY) ",null,null,null,null,null,{"$f":"IF(入力シート!L33=\"\",\"\",ASC(UPPER(入力シート!L33)))","v":""}]
[null,null,null,null,null,null,null,null,null,null,null,null,null,"州名(STATE)",null,null,null,null,null,{"$f":"IF(入力シート!L32=\"\",\"\",ASC(UPPER(入力シート!L32)))","v":""},null,null,null,null,null,null,null,null,null,"国名(COUNTRY)",null,null,null,null,null,{"$f":"IF(入力シート!R31=\"\",\"\",ASC(UPPER(入力シート!R31)))","v":""}]
[null,null,null,null,null,null,null,null,null,null,null,null,null,{"$f":"IF(入力シート!J41=\"\",\"\",ASC(UPPER(入力シート!J41)))","v":""},null,null,null,null,null,null,null,null,null,null,null,null,null,null,null,null,null,"「外国為替及び外国貿易法」の北朝鮮・イラン・ウクライナ情勢（ロシア・ベラルーシ）\n関連規制及び米国OFAC規制に該当しません。\n(NONE RELATED TO NORTH KOREA/IRAN/RUSSIA/BELARUS/OFAC REGULATIONS)"]
[null,null,"ご送金目的①"]
[null,null,"(PURPOSE)"]
[null,null,null,null,null,null,null,null,null,null,null,null,null,null,null,null,null,null,null,null,null,null,null,null,null,null,null,null,null,null,null,"受取人(法人の場合は実質的支配者を含む)は資産凍結等経済制裁対象者に該当しません。\n(NONE RELATED TO ECONOMIC SANCTIONS)"]
[]
[]
[null,null,null,null,null,null,null,null,null,null,null,null,null,{"$f":"IF(入力シート!J47=\"\",\"\",ASC(UPPER(入力シート!J47)))","v":""},null,null,null,null,null,null,null,null,null,null,null,null,null,null,null,"原産地(国名)②\n(COUNTRY OF ORIGIN)",null,null,null,null,null,null,{"$f":"IF(入力シート!R43=\"\",\"\",ASC(UPPER(入力シート!R43)))","v":""},null,null,null,null,null,null,null,"外国為替及び外国貿易法に基づく許可等④",null,null,null,null,null,null,null,{"$f":"IF(入力シート!Q45=\"\",\"\",ASC(UPPER(入力シート!Q45)))","v":""}]
[null,null,"メッセージ"]
[null,null,"(MESSAGE)"]
[]
[null,null,null,null,null,null,null,null,null,null,null,null,null,{"$f":"IF(入力シート!I57=\"\",\"\",ASC(UPPER(入力シート!I57)))","v":""},null,null,null,null,null,null,null,null,null,null,null,null,null,null,null,"船積を行った都市名③\n(SHIPMENT CITY NAME)",null,null,null,null,null,null,{"$f":"IF(入力シート!J44=\"\",\"\",ASC(UPPER(入力シート!J44)))","v":""},null,null,null,null,null,null,null,"送金許可番号・日付⑤\n(PERMIT NO. & DATE)",null,null,null,null,null,null,null,{"$f":"IF(入力シート!Q46=\"\",\"\",ASC(UPPER(入力シート!Q46)))","v":""}]
[null,null,"代り金決済方法"]
[]
[]
[null,null,null,null,null,null,null,null,null,null,null,null,null,{"$f":"IF(入力シート!G56=\"\",\"\",ASC(UPPER(入力シート!G56)))","v":""},null,null,null,null,null,null,"店番－口座番号",null,null,null,null,null,null,{"$f":"IF(入力シート!G55=\"\",\"\",ASC(UPPER(入力シート!G55)))","v":""},null,null,null,null,{"$f":"IF(入力シート!Q56=\"\",\"\",ASC(UPPER(入力シート!Q56)))","v":""},null,null,null,null,null,null,null,null,null,null,null,null,null,null,null,null,null,null,null,{"$f":"IF(入力シート!S57=\"\",\"\",ASC(UPPER(入力シート!S57)))","v":""}]
[null,null,"送金資金お支払い口座",null,null,null,null,null,null,null,null,null,null,null,null,null,null,null,null,null,null,null,null,null,null,null,null,null,null,null,null,"-",null,null,null,null,null,null,null,null,null,null,null,null,"予約番号"]
[]
[null,null,null,null,null,null,null,null,null,null,null,null,null,{"$f":"IF(入力シート!G60=\"\",\"\",ASC(UPPER(入力シート!G60)))","v":""},null,null,null,null,null,null,"店番－口座番号",null,null,null,null,null,null,{"$f":"IF(入力シート!G59=\"\",\"\",ASC(UPPER(入力シート!G59)))","v":""},null,null,null,null,{"$f":"IF(入力シート!Q60=\"\",\"\",ASC(UPPER(入力シート!Q60)))","v":""},null,null,null,null,null,null,null,null,null,null,null,null,null,null,null,null,null,null,null,{"$f":"IF(入力シート!S60=\"\",\"\",入力シート!S60)","v":""}]
[null,null,"送金手数料お支払い口座",null,null,null,null,null,null,null,null,null,null,null,null,null,null,null,null,null,null,null,null,null,null,null,null,null,null,null,null,"-",null,null,null,null,null,null,null,null,null,null,null,null,null,"【受付店確認欄】"]
[]
[]
[null,"貴行における当方名義の上記口座から、送金資金及び諸手数料を引き落としてください。この取扱いにあたっては、"]
[null,"当座勘定規定またはその他の預金規定にかかわらず、当座小切手または払戻請求書は提出しません。"]
[]
[null,"外国送金取引規定の条項に従い上記送金を依頼します。",null,null,null,null,null,null,null,null,null,null,null,null,null,null,null,null,null,null,null,null,null,null,null,null,null,null,null,null,null,null,null,null,null,null,null,null,null,null,null,null,null,null,null,null,null,"支払又は支払の受領に関する報告書"]
[null,"私／当社は、本依頼書の「許可等」の欄において「許可等」が要であると記入した場合を除き、送金が国連の経済制裁対象国に住所若し"]
[null,"くは居所を有する自然人若しくは主たる事務所を有する法人・その他の団体（当該法人その他の団体の外国にある支店、出張所その他"]
[null,"の事務所を含む）、またはこれらのものにより実質的に支配されている法人、その他の団体に向けたものではないことを確認いたします。"]
[null,"私／当社は「テロ資金供与に関するFATF特別勧告」遵守の観点から必要に応じて関係銀行（被仕向銀行等）に対する支払指図上に、"]
[null,"私／当社の氏名、住所、口座番号及びその他送金依頼人を特定する情報の記載および提供を行うこと（関係銀行から送金受取人にも"]
[null,"伝達される可能性があることも含みます）に同意し、承諾いたします。"]
[null,null,"おところ",null,null,null,null,null,"（〒",null,null,{"$f":"IF(入力シート!K64=\"\",\"\",ASC(UPPER(入力シート!K64)))","v":""},null,null,null,"-",null,{"$f":"IF(入力シート!N64=\"\",\"\",入力シート!N64)","v":""},null,null,null,null,null,")",null,null,"TEL",null,null,"（",{"$f":"IF(入力シート!J69=\"\",\"\",ASC(UPPER(入力シート!J69)))","v":""},null,null,null,null,null,null,null,null,null,null,null,"）"]
[]
[null," ","(ADDRESS)",null,null,null,null,null,{"$f":"IF(入力シート!J66=\"\",\"\",入力シート!J66)","v":""}]
[]
[]
[]
[]
[null,null,"ご依頼人・記名押印"]
[]
[null,null,null,null,null,null,null,null,null,null,null,null,null,null,null,null,null,null,null,null,null,null,null,null,null,null,null,null,null,null,null,null,null,"様"]
[null,null," (APPLICANT'S SIGNATURE)",null,null,null,null,null,null,null,null,null,null,null,null,null,null,null,null,null,null,null,null,null,null,null,null,null,null,null,null,null,null,null,null,null,null,null,"印"]
[]
[null,null,null,null,null,null,null,null,null,null,null,null,null,null,null,null,null,null,null,null,null,null,null,null,null,null,null,null,null,null,null,null,null,null,null,null,"預金お届け印"]

{"sheet":"入力見本","index":4,"n_rows":70,"n_cols":26,"rows_kept":70,"cut":false,"hidden":false,"merged":[[68,3,68,8],[68,9,68,23],[69,3,70,8],[69,9,70,23],[65,3,67,8],[65,9,67,23],[58,3,58,5],[58,6,58,11],[58,12,58,19],[59,3,59,5],[59,6,59,11],[59,12,59,15],[59,16,59,24],[63,3,64,8],[63,9,64,9],[63,10,64,11],[63,12,64,12],[63,13,64,15],[55,3,55,5],[55,6,55,11],[55,12,55,15],[55,16,55,24],[56,3,56,7],[56,8,56,14],[56,15,56,17],[56,18,56,24],[46,3,47,8],[46,9,47,24],[48,3,51,22],[54,3,54,5],[54,6,54,11],[54,12,54,19],[43,3,43,8],[43,9,43,16],[44,3,44,15],[44,16,44,24],[45,3,45,15],[45,16,45,24],[42,3,42,8],[42,9,42,16],[42,17,42,24],[31,3,31,10],[31,11,31,16],[31,17,31,24],[32,3,32,10],[32,11,32,16],[33,3,34,10],[33,11,34,24],[35,3,36,22],[39,3,39,8],[39,9,39,16],[40,3,41,8],[40,9,41,24],[26,3,26,10],[26,11,26,24],[29,3,29,10],[29,11,29,24],[30,3,30,10],[30,11,30,16],[30,17,30,24],[22,3,22,10],[22,11,22,14],[22,15,22,24],[16,3,16,10],[16,11,16,24],[17,3,18,10],[17,11,18,24],[19,3,19,10],[19,11,19,16],[19,17,19,24],[20,3,20,10],[20,11,20,16],[20,17,20,24],[21,3,21,10],[21,11,21,16],[9,3,10,10],[9,11,10,24],[11,3,11,10],[11,11,11,24],[14,3,15,4],[14,5,14,10],[14,11,14,24],[15,5,15,10],[15,11,15,24],[8,3,8,10],[8,11,8,24],[4,3,4,10],[4,11,4,17],[4,18,4,21],[5,3,5,10],[5,11,5,21]]}
[]
[null,null,null,"◆","白枠内を入力してください。全て英字・半角大文字で入力してください。"]
[]
[null,1,null,"送金通貨と送金額をご入力ください。（CURRENCY and AMOUNT)"]
[null,null,null,"通貨 (CURRENCY)",null,null,null,null,null,null,null,"アメリカドル",null,null,null,null,null,null,"USD"]
[null,null,null,"金額 (REMIT AMOUNT)",null,null,null,null,null,null,null,150000]
[]
[null,2,null,"ご送金人（ご依頼人）情報をご入力ください。（FROM:)"]
[null,null,null,"名前 （NAME)",null,null,null,null,null,null,null,"HANAKO KYOGIN"]
[null,null,null,"住所 （ADDRESS)",null,null,null,null,null,null,null,"700 YAKUSHIMAECHO KARASUMADORI MATSUBARA AGARU SHIMOGYOKU KYOTO JAPAN"]
[]
[null,null,null,"支払方法\n(PAYMENT INSTRUCTION)",null,null,null,null,null,null,null,"通知払(ADVICE AND PAY)〔ご指定口座入金〕"]
[]
[null,3,null,"お受取人取引（送金先）銀行をご入力ください。(PAYING BANK AND BRANCH)"]
[null,null,null,"銀行コード",null,"SWIFT(BIC)コード",null,null,null,null,null,"WFBIUS6S"]
[null,null,null,null,null,"その他コード\n(ABA,BSB,TRANSIT等)",null,null,null,null,null,"ABA: 121000248"]
[null,null,null,"銀行名 (PAYING BANK) ",null,null,null,null,null,null,null,"WELLS FARGO BANK N.A."]
[null,null,null,"支店名 (BRANCH）・\n支店住所 (ADDRESS）",null,null,null,null,null,null,null,"420 MONTGOMERY ST. SAN FRANCISCO CALIFORNIA 94104"]
[]
[null,null,null,"国名 (COUNTRY）",null,null,null,null,null,null,null,"アメリカ合衆国",null,null,null,null,null,"UNITED STATES"]
[null,null,null,"省市/州名 (STATE）",null,null,null,null,null,null,null,"CALIFORNIA"]
[null,null,null,"都市名 (CITY）",null,null,null,null,null,null,null,"SAN FRANCISCO"]
[null,null,null,"口座番号（A/C NO.)",null,null,null,null,null,null,null,"(欧州向けの\n場合はIBANコード)",null,null,null,"001-1042016"]
[]
[null,4,null,"お受取人取引銀行等手数料（支払銀行手数料）のお支払い方法を選んでください。"]
[null,null,null,"(PAYING BANK'S CHARGES IF ANY, ARE FOR A/C OF)"]
[null,null,null,"手数料支払い方法",null,null,null,null,null,null,null,"ご依頼人負担(APPLICANT)"]
[]
[null,5,null,"お受取人（送金先）をご入力ください。（TO:）"]
[null,null,null,"名前 （NAME)",null,null,null,null,null,null,null,"TARO KYOGINN"]
[null,null,null,"国名(COUNTRY)",null,null,null,null,null,null,null,"アメリカ合衆国",null,null,null,null,null,"UNITED STATES"]
[null,null,null,"省市/州名 (STATE）",null,null,null,null,null,null,null,"CALIFORNIA"]
[null,null,null,"都市名 (CITY）",null,null,null,null,null,null,null,"SAN FRANCISCO"]
[null,null,null,"住所 （ADDRESS)",null,null,null,null,null,null,null,"1 REDWOOD ST. PARKWAY REDWOOD CITY CALIFORNIA 94065"]
[]
[null,null,null,"受取人(法人の場合は実質的支配者を含む)は資産凍結等経済制裁対象者に\n該当しません。(NONE RELATED TO ECONOMIC SANCTIONS)",null,null,null,null,null,null,null,null,null,null,null,null,null,null,null,null,null,null,null,null,null,true]
[]
[]
[null,6,null,"ご送金目的をご入力ください。(PURPOSE)"]
[null,null,null,"送金目的",null,null,null,null,null,"輸入"]
[null,null,null,"送金理由(PURPOSE)",null,null,null,null,null,"TOYS"]
[]
[null,null,null,"原産地（国名）\n(COUNTRY OF ORIGIN)",null,null,null,null,null,"アメリカ合衆国",null,null,null,null,null,null,null,"UNITED STATES"]
[null,null,null,"船積を行った都市名\n(SHIPMENT CITY NAME)",null,null,null,null,null,"SAN FRANCISCO"]
[null,null,null,"外国為替及び外国貿易法に基づく許可等",null,null,null,null,null,null,null,null,null,null,null,null,"不要"]
[null,null,null,"送金許可番号・日付⑤(PERMIT NO. & DATE)"]
[null,null,null,"メッセージ",null,null,null,null,null,"PRODUCT NO. 123-44456"]
[]
[null,null,null,"「外国為替及び外国貿易法」の北朝鮮・イラン・ウクライナ情勢（ロシア・ベラルーシ）\n関連規制及び米国OFAC規制に該当しません。\n(NONE RELATED TO NORTH KOREA/IRAN/UKRAINE SITUATION\n(RUSSIA, BELARUS)/OFAC REGULATIONS)"]
[null,null,null,null,null,null,null,null,null,null,null,null,null,null,null,null,null,null,null,null,null,null,null,null,null,true]
[]
[]
[]
[null,7,null,"（１）送金資金のお支払い口座をご入力ください。(APPLICANTS' ACCOUNT INFORMATION)"]
[null,null,null,"店番",null,null,101,null,null,null,null,null,"本店営業部"]
[null,null,null,"科目",null,null,"普通",null,null,null,null,null,"口座番号",null,null,null,123456]
[null,null,null,"代り金決済方法",null,null,null,null,"円貨払（SPOT)",null,null,null,null,null,null,"予約番号"]
[null,null,null,"（２）送金手数料のお支払口座をご入力ください。"]
[null,null,null,"店番",null,null,101,null,null,null,null,null,"本店営業部"]
[null,null,null,"科目",null,null,"普通",null,null,null,null,null,"口座番号",null,null,null,987654]
[]
[null,8,null,"ご依頼人のお名前・ご住所・連絡先をご入力ください。"]
[null,null,null,"APPLICANT'S NAME, ADDRESS, CONTACT NUMBER)"]
[null,null,null,"郵便番号",null,null,null,null,null,"〒",607,null,"－",8652]
[]
[null,null,null,"おところ",null,null,null,null,null,"京都市下京区烏丸通松原上る薬師前町700"]
[]
[]
[null,null,null,"日中連絡可能な電話番号",null,null,null,null,null,"075-361-2274"]
[null,null,null,"ご依頼人"]

{"sheet":"変更履歴","index":5,"n_rows":5,"n_cols":4,"rows_kept":5,"cut":false,"hidden":false,"merged":[]}
[]
[]
[null,"変更月","変更内容","Ver.数"]
[null,"2023-02-01","「ご利用時にあたって」の「ウクライナ情勢をめぐる「外国為替及び外国貿易法」に基づく措置」の文言修正","Ver.1"]
[null,"2024-02-01","外国送金取引規定の修正","Ver.2"]